Department,Entity,Posted Date,Internal Voucher Number,Invoice Line Amount Net GBP,Supplier Name,Account Code
FCO,FCO,07/12/2016,8598444,70000000,UNITED NATIONS,Programme Spend (Oracle Projects Control Account)
FCO,FCO,20/12/2016,8743456,13150000,BRITISH COUNCIL,Programme Spend (Oracle Projects Control Account)
FCO,FCO,09/12/2016,8625487,7234605.75,NATO INTERNATIONAL STAFF,Programme Spend (Oracle Projects Control Account)
FCO,FCO,02/12/2016,8575549,6500000,THE ASSOCIATION OF COMMONWEALTH UNIVERSITIES,Programme Spend (Oracle Projects Control Account)
FCO,FCO,09/12/2016,8624739,5957279.92,UNDP MULTI PARTNER TRUST FUND OFFICE,Programme Spend (Oracle Projects Control Account)
FCO,FCO,12/12/2016,8644452,5931524.88,HMRC HM REVENUE AND CUSTOMS,Multiple Accounts
FCO,FCO,29/12/2016,8800624,5462000,UNITED NATIONS,Programme Spend (Oracle Projects Control Account)
FCO,FCO,09/12/2016,8625554,4875444.95,UNITED NATIONS,Programme Spend (Oracle Projects Control Account)
FCO,FCO,13/12/2016,8661553,4678004.72,CABINET OFFICE,Multiple Accounts
FCO,FCO,20/12/2016,8756437,4029715.05,MAYDAY RESCUE,Programme Spend (Oracle Projects Control Account)
FCO,FCO,28/12/2016,8793606,4000000,THE ASSOCIATION OF COMMONWEALTH UNIVERSITIES,Programme Spend (Oracle Projects Control Account)
FCO,FCO,29/12/2016,8800721,4000000,BBC  BRITISH BROADCASTING CORPORATION,Programme Spend (Oracle Projects Control Account)
FCO,FCO,28/12/2016,8793522,3500000,UNMAS,Programme Spend (Oracle Projects Control Account)
FCO,FCO,14/12/2016,8687432,3046454.09,NATO,Programme Spend (Oracle Projects Control Account)
FCO,FCO,13/12/2016,8660552,2970000,ISS FACILITY SERVICES LTD FCO OP - POE,FMCU POE Trust Account Debtor
FCO,FCO,01/12/2016,8645459,2547181.31,THE ROYAL BANK OF SCOTLAND,Corporate Credit Card Clearing Account
FCO,FCO,21/12/2016,8765434,2307806.57,THE ROYAL BANK OF SCOTLAND,Multiple Accounts
FCO,FCO,02/12/2016,8575521,2253626.6,RISK ADVISORY GROUP PLC,Programme Spend (Oracle Projects Control Account)
FCO,FCO,23/12/2016,8782483,2184762.6,RISK ADVISORY GROUP PLC,Programme Spend (Oracle Projects Control Account)
FCO,FCO,13/12/2016,8661440,1892729.56,G4S RISK MANAGEMENT LTD,UK Guarding Contracts Overseas
FCO,FCO,06/12/2016,8586593,1505004,FCO SERVICES,Specialist Contractors
FCO,FCO,08/12/2016,8621581,1500000,ORGANIZATION OF AMERICAN STATES,Programme Spend (Oracle Projects Control Account)
FCO,FCO,20/12/2016,8744574,1483290.9,RISK ADVISORY GROUP PLC,Programme Spend (Oracle Projects Control Account)
FCO,FCO,29/12/2016,8800648,1400000,USAID,Programme Spend (Oracle Projects Control Account)
FCO,FCO,15/12/2016,8697602,1377238.89,H M EXCHEQUER,CFER Payments to The Exchequer (CSC Use Only)
FCO,FCO,09/12/2016,8625520,1348862.68,FCO SERVICES,Residential Property Services
FCO,FCO,09/12/2016,8627601,1282160.14,EUROPEAN COMMISSION,Programme Spend (Oracle Projects Control Account)
FCO,FCO,05/12/2016,8580004,1199328.38,EASTERN SECURITY SERVICES,Programme Spend (Oracle Projects Control Account)
FCO,FCO,01/12/2016,8649443,1027662.4,THE ROYAL BANK OF SCOTLAND,Travel Package Advance Overseas Posting (Credit Card Payments Only)
FCO,FCO,21/12/2016,8760470,1000000,AFRICAN UNION PEACE FUND,Programme Spend (Oracle Projects Control Account)
FCO,FCO,21/12/2016,8765504,1000000,NATO,Programme Spend (Oracle Projects Control Account)
FCO,FCO,14/12/2016,8687553,989403.64,EUROPEAN BANK FOR CONSTRUCTION + DEVELOPMENT,Protocol - General VAT Refunds to Other Organisations
FCO,FCO,22/12/2016,8773639,969857.84,GARDA WORLD LTD,UK Mobile Guarding Contract overseas
FCO,FCO,14/12/2016,8687490,851738.79,IOM INTERNATIONAL ORG FOR MIGRATION,Programme Spend (Oracle Projects Control Account)
FCO,FCO,05/12/2016,8580328,848366.85,BAE SYSTEMS APPLIED INTELLIGENCE LIMITED,Multiple Accounts
FCO,FCO,12/12/2016,8644572,706000,GOVERNMENT COMMUNICATIONS BUREAU  ADMIN A/C 6253,Information Systems Maintenance
FCO,FCO,14/12/2016,8687562,667999.52,EUROPEAN MOLECULAR BIOLOGY LABORATORY,Protocol - General VAT Refunds to Other Organisations
FCO,FCO,20/12/2016,8746451,660000,UNDP MULTI PARTNER TRUST FUND OFFICE,Programme Spend (Oracle Projects Control Account)
FCO,FCO,21/12/2016,8765424,659527,UNDP MULTI PARTNER TRUST FUND OFFICE,Programme Spend (Oracle Projects Control Account)
FCO,FCO,06/12/2016,8584660,634556.06,INPREDSERVICE,Rental Payments - non residential
FCO,FCO,06/12/2016,8592441,633314.08,THE ROYAL BANK OF SCOTLAND,Multiple Accounts
FCO,FCO,21/12/2016,8762496,630962,BRITISH COUNCIL,Programme Spend (Oracle Projects Control Account)
FCO,FCO,07/12/2016,8602431,629280,DYNASAFE BACTEC LTD,Programme Spend (Oracle Projects Control Account)
FCO,FCO,23/12/2016,8782488,615270.5,RISK ADVISORY GROUP PLC,Programme Spend (Oracle Projects Control Account)
FCO,FCO,20/12/2016,8750757,584398.74,KPMG FIDUCIAIRE,Multiple Accounts
FCO,FCO,02/12/2016,8575528,579476.12,RISK ADVISORY GROUP PLC,Programme Spend (Oracle Projects Control Account)
FCO,FCO,29/12/2016,8799481,575677.62,TRANS NILE LTD,Rental Payments - residential
FCO,FCO,02/12/2016,8575432,552498.35,GILBERT ASH LIMITED,Assets Under Construction (Oracle PA Control Account)
FCO,FCO,08/12/2016,8620443,535171.29,ARTEOS GMBH,Multiple Accounts
FCO,FCO,02/12/2016,8575454,507730.91,GOVERNMENT LEGAL DEPARTMENT,Multiple Accounts
FCO,FCO,14/12/2016,8687523,500000,UNDP CONTRIBUTIONS,Programme Spend (Oracle Projects Control Account)
FCO,FCO,16/12/2016,8712196,484900.54,INTERSERVE FM LTD,Multiple Accounts
FCO,FCO,28/12/2016,8794565,479856.33,BAE SYSTEMS APPLIED INTELLIGENCE LIMITED,Multiple Accounts
FCO,FCO,05/12/2016,8580191,475734.49,WESTMINSTER FOUNDATION FOR DEMOCRACY,Programme Spend (Oracle Projects Control Account)
FCO,FCO,14/12/2016,8687668,468562.25,JUAN GAVIRIA RESTREPO,Rental Payments - non residential
FCO,FCO,16/12/2016,8712322,442043.06,ISS FACILITY SERVICES LTD FCO OP - POE,Multiple Accounts
FCO,FCO,13/12/2016,8668500,440000,THE WORLD BANK MDTFT,Programme Spend (Oracle Projects Control Account)
FCO,FCO,14/12/2016,8686424,438938.68,INCOSTRAT,Programme Spend (Oracle Projects Control Account)
FCO,FCO,14/12/2016,8687577,431967.22,EUROPEAN MOLECULAR BIOLOGY LABORATORY,Protocol - General VAT Refunds to Other Organisations
FCO,FCO,29/12/2016,8800441,404799.11,LAPIS MIDDLE EAST AND AFRICA FZ LLC,Programme Spend (Oracle Projects Control Account)
FCO,FCO,13/12/2016,8669431,400000,UNITED NATIONS,Programme Spend (Oracle Projects Control Account)
FCO,FCO,13/12/2016,8665437,399988,FCO SERVICES,Assets Under Construction (Oracle PA Control Account)
FCO,FCO,12/12/2016,8635137,390997.04,HIGH PEACE COUNCIL,Programme Spend (Oracle Projects Control Account)
FCO,FCO,20/12/2016,8756489,375037,IFES,Programme Spend (Oracle Projects Control Account)
FCO,FCO,22/12/2016,8777559,372240,CITY OF WESTMINSTER,Rates Taxes Non-Residential
FCO,FCO,28/12/2016,8793510,358884.31,GILBERT ASH LIMITED,Assets Under Construction (Oracle PA Control Account)
FCO,FCO,14/12/2016,8686475,350000,UNITED NATIONS,Programme Spend (Oracle Projects Control Account)
FCO,FCO,14/12/2016,8687506,350000,MARSHALL AID COMMERATION COMMISSION,Programme Spend (Oracle Projects Control Account)
FCO,FCO,29/12/2016,8800642,350000,UN DEVELOPMENT PROGRAMME,Programme Spend (Oracle Projects Control Account)
FCO,FCO,16/12/2016,8712326,348071.95,ISS FACILITY SERVICES LTD FCO OP - POE,Multiple Accounts
FCO,FCO,22/12/2016,8774531,347882.49,PLAZA TOWER LLC,Multiple Accounts
FCO,FCO,30/12/2016,8803528,346466.33,BAE SYSTEMS APPLIED INTELLIGENCE LIMITED,Assets Under Construction (Oracle PA Control Account)
FCO,FCO,21/12/2016,8762448,345086,PRICEWATERHOUSE COOPERS LLP,Programme Spend (Oracle Projects Control Account)
FCO,FCO,14/12/2016,8687558,344511.05,EUROPEAN MOLECULAR BIOLOGY LABORATORY,Protocol - General VAT Refunds to Other Organisations
FCO,FCO,21/12/2016,8761451,339727.95,ADAM SMITH INTERNATIONAL,Programme Spend (Oracle Projects Control Account)
FCO,FCO,23/12/2016,8783511,329323.06,COMITATO INTERNAZIONALE PER LO SVILUPPO DEI POPOLI  CISP,Programme Spend (Oracle Projects Control Account)
FCO,FCO,30/12/2016,8803455,324748.09,INTERNATIONAL LABOUR ORGANIZATION,Programme Spend (Oracle Projects Control Account)
FCO,FCO,30/12/2016,8803545,317000,FCO SERVICES,Assets Under Construction (Oracle PA Control Account)
FCO,FCO,22/12/2016,8777530,316086,DAI EUROPE LIMITED,Programme Spend (Oracle Projects Control Account)
FCO,FCO,14/12/2016,8687521,314917.21,NATO PARLIAMENTARY ASSEMBLY,Programme Spend (Oracle Projects Control Account)
FCO,FCO,20/12/2016,8751433,313043.43,EUROPEAN ENDOWMENT FOR DEMOCRACY,Programme Spend (Oracle Projects Control Account)
FCO,FCO,28/12/2016,8788493,307516,NI CO OPERATION OVERSEAS NI CO LTD,Programme Spend (Oracle Projects Control Account)
FCO,FCO,02/12/2016,8575602,301540,FCO SERVICES,Assets Under Construction (Oracle PA Control Account)
FCO,FCO,13/12/2016,8668428,300000,BIOT REVENUE ACCOUNT,Programme Spend (Oracle Projects Control Account)
FCO,FCO,22/12/2016,8775448,300000,UNITED NATIONS FOUNDATION,Programme Spend (Oracle Projects Control Account)
FCO,FCO,28/12/2016,8793462,300000,THE HALO TRUST,Programme Spend (Oracle Projects Control Account)
FCO,FCO,30/12/2016,8803548,300000,FCO SERVICES,Assets Under Construction (Oracle PA Control Account)
FCO,FCO,09/12/2016,8627469,298462.68,INSTITUTE FOR SECURITY STUDIES ISS,Programme Spend (Oracle Projects Control Account)
FCO,FCO,02/12/2016,8575567,294083.33,THE ASSOCIATION OF COMMONWEALTH UNIVERSITIES,Programme Spend (Oracle Projects Control Account)
FCO,FCO,28/12/2016,8793596,294083.33,THE ASSOCIATION OF COMMONWEALTH UNIVERSITIES,Programme Spend (Oracle Projects Control Account)
FCO,FCO,13/12/2016,8668426,289322.81,LONDON ENERGY,Electricity Non-Residential
FCO,FCO,13/12/2016,8661540,285000,CONCILIATION RESOURCES,Programme Spend (Oracle Projects Control Account)
FCO,FCO,08/12/2016,8617431,280000,UNDP CONTRIBUTIONS,Programme Spend (Oracle Projects Control Account)
FCO,FCO,30/12/2016,8803731,279000,CPS CROWN PROSECUTION SERVICE HQ,Inward Secondments
FCO,FCO,30/12/2016,8803733,279000,DEPARTMENT OF HEALTH,Inward Secondments
FCO,FCO,22/12/2016,8777522,270870.5,ADAM SMITH INTERNATIONAL,Programme Spend (Oracle Projects Control Account)
FCO,FCO,16/12/2016,8717532,257913.25,CABINET OFFICE,Miscellaneous Expenditure: inc subscriptions and equipment maintenance
FCO,FCO,30/12/2016,8803637,256707.48,FCO SERVICES,Air Freight Dip Bags - Freight & Clearance Charges
FCO,FCO,05/12/2016,8580039,255000,POWER ELECTRICS GENERATORS LTD,Assets Under Construction (Oracle PA Control Account)
FCO,FCO,12/12/2016,8650434,254500.85,ISS FACILITY SERVICES LTD FCO OP,Multiple Accounts
FCO,FCO,02/12/2016,8575442,253136.52,MORSON HUMAN RESOURCES LTD,Residential Property Services
FCO,FCO,05/12/2016,8579907,252258.74,OMAYA LAWZI,Rental Payments - residential
FCO,FCO,13/12/2016,8668474,250000,ICAN,Programme Spend (Oracle Projects Control Account)
FCO,FCO,20/12/2016,8756776,250000,GOVERNMENT OF THE BRITISH ANTARCTIC TERRITORY,Programme Spend (Oracle Projects Control Account)
FCO,FCO,30/12/2016,8803480,247300,INTERNTL COMMISSION MISSING PERSONS,Programme Spend (Oracle Projects Control Account)
FCO,FCO,14/12/2016,8687567,245870.81,EUROPEAN CENTRE FOR MEDIUM,Protocol - General VAT Refunds to Other Organisations
FCO,FCO,01/12/2016,8566441,245290,COMPUTACENTER UK LTD,Assets Under Construction (Oracle PA Control Account)
FCO,FCO,20/12/2016,8749455,237268,AXIOM INTERNATIONAL LTD,Programme Spend (Oracle Projects Control Account)
FCO,FCO,14/12/2016,8687487,226937,UNITED NATIONS,Programme Spend (Oracle Projects Control Account)
FCO,FCO,21/12/2016,8759437,225069,AKTIS STRATEGY,Programme Spend (Oracle Projects Control Account)
FCO,FCO,08/12/2016,8618434,223882,HYDROGRAPHIC OFFICE,Programme Spend (Oracle Projects Control Account)
FCO,FCO,22/12/2016,8777435,220312.16,GARDA WORLD LTD,UK Guarding Contracts Overseas
FCO,FCO,30/12/2016,8803492,218340,COMPUTACENTER UK LTD,Assets Under Construction (Oracle PA Control Account)
FCO,FCO,09/12/2016,8629530,215289.99,AEGIS DEFENCE SERVICES LTD,Multiple Accounts
FCO,FCO,01/12/2016,8566482,214235.83,NI CO OPERATION OVERSEAS NI CO LTD,Programme Spend (Oracle Projects Control Account)
FCO,FCO,12/12/2016,8641425,213651.9,AEGIS DEFENCE SERVICES LTD,Multiple Accounts
FCO,FCO,15/12/2016,8704470,212799.24,STOOF INTERNATIONAL VERTRIEBSGESELLSCHAFT MBH,Assets Under Construction (Oracle PA Control Account)
FCO,FCO,28/12/2016,8793447,210500,INTERNATIONAL IDEA,Programme Spend (Oracle Projects Control Account)
FCO,FCO,20/12/2016,8750424,210119.87,BBC MEDIA ACTION,Programme Spend (Oracle Projects Control Account)
FCO,FCO,30/12/2016,8803489,206642.48,COMPUTACENTER UK LTD,Assets Under Construction (Oracle PA Control Account)
FCO,FCO,14/12/2016,8683426,204664.47,ADAM SMITH INTERNATIONAL,Programme Spend (Oracle Projects Control Account)
FCO,FCO,30/12/2016,8803535,201465.14,FCO SERVICES,Assets Under Construction (Oracle PA Control Account)
FCO,FCO,20/12/2016,8744599,200109,RISK ADVISORY GROUP PLC,Programme Spend (Oracle Projects Control Account)
FCO,FCO,29/12/2016,8800629,200108,INDEPENDENT DIPLOMATS,Programme Spend (Oracle Projects Control Account)
FCO,FCO,01/12/2016,8568440,200000,UNICEF,Programme Spend (Oracle Projects Control Account)
FCO,FCO,02/12/2016,8575555,200000,CENTRE FOR HUMANITARIAN DIALOGUE,Programme Spend (Oracle Projects Control Account)
FCO,FCO,06/12/2016,8586589,200000,FCO SERVICES,Assets Under Construction (Oracle PA Control Account)
FCO,FCO,20/12/2016,8756783,200000,UNITED NATIONS,Programme Spend (Oracle Projects Control Account)
FCO,FCO,21/12/2016,8760499,199476.5,FCO SERVICES,Specialist Contractors
FCO,FCO,28/12/2016,8793550,198783.96,STABILISATION NETWORK,Programme Spend (Oracle Projects Control Account)
FCO,FCO,28/12/2016,8793521,195480,SERVEST MULTI SERVICE GROUP,Manned Guarding Services
FCO,FCO,23/12/2016,8784439,194783.43,FCO SERVICES,Construction Project more than 10k
FCO,FCO,14/12/2016,8686453,192921.4,BAE SYSTEMS APPLIED INTELLIGENCE LIMITED,Multiple Accounts
FCO,FCO,13/12/2016,8664450,192569.83,SERVEST MULTI SERVICE GROUP,Manned Guarding Services
FCO,FCO,14/12/2016,8687612,190611.04,EUROPEAN CENTRE FOR MEDIUM,Protocol - General VAT Refunds to Other Organisations
FCO,FCO,13/12/2016,8661533,187424.97,THE ROYAL BANK OF SCOTLAND,Multiple Accounts
FCO,FCO,29/12/2016,8799490,187365,TORCHLIGHT SOLUTIONS LTD,Programme Spend (Oracle Projects Control Account)
FCO,FCO,29/12/2016,8799474,185904,COMPUTACENTER UK LTD,Assets Under Construction (Oracle PA Control Account)
FCO,FCO,22/12/2016,8772687,184834.69,DAI EUROPE LIMITED,Programme Spend (Oracle Projects Control Account)
FCO,FCO,06/12/2016,8586538,184491,CONTROL RISKS GROUP,UK Mobile Guarding Contract overseas
FCO,FCO,20/12/2016,8742451,183726.89,ADAM SMITH INTERNATIONAL,Programme Spend (Oracle Projects Control Account)
FCO,FCO,12/12/2016,8644460,183693,CONTROL RISKS GROUP,UK Mobile Guarding Contract overseas
FCO,FCO,29/12/2016,8802434,183453.2,VODAFONE LTD CABLE AND WIRELESS UK,Multiple Accounts
FCO,FCO,09/12/2016,8624732,180387.99,CAPGEMINI UK PLC,IT/IS Consultancy
FCO,FCO,15/12/2016,8697489,179056.24,THE HALO TRUST,Programme Spend (Oracle Projects Control Account)
FCO,FCO,16/12/2016,8712329,174602.3,ISS FACILITY SERVICES LTD FCO OP - POE,Multiple Accounts
FCO,FCO,09/12/2016,8629428,174364.74,OVERSEAS SUPPLY SERVICES LTD,Estates Management Services
FCO,FCO,05/12/2016,8579934,169012.94,MARCH,Programme Spend (Oracle Projects Control Account)
FCO,FCO,13/12/2016,8664442,168843.41,BAE SYSTEMS APPLIED INTELLIGENCE LIMITED,Multiple Accounts
FCO,FCO,28/12/2016,8793549,168823.1,COMPUTACENTER UK LTD,Assets Under Construction (Oracle PA Control Account)
FCO,FCO,22/12/2016,8775454,168116.58,COMPUTACENTER UK LTD,Specialist Contractors
FCO,FCO,29/12/2016,8799432,167905.97,EMBASSY OF BULGARIA,Rental Payments - non residential
FCO,FCO,12/12/2016,8644627,167817.98,BAE SYSTEMS APPLIED INTELLIGENCE LIMITED,Multiple Accounts
FCO,FCO,21/12/2016,8760533,167404,NORDIC INTERNATIONAL SUPPORT FOUNDATION,Programme Spend (Oracle Projects Control Account)
FCO,FCO,22/12/2016,8774603,166865.19,TORRE ESPACIO CASTELLANA SAU,Rental Payments - non residential
FCO,FCO,23/12/2016,8783531,163440,PRICEWATERHOUSE COOPERS LLP,Programme Spend (Oracle Projects Control Account)
FCO,FCO,30/12/2016,8803496,161956.11,COMPUTACENTER UK LTD,Assets Under Construction (Oracle PA Control Account)
FCO,FCO,30/12/2016,8803553,160929.69,FCO SERVICES,Assets Under Construction (Oracle PA Control Account)
FCO,FCO,19/12/2016,8729461,160853.91,DAI EUROPE LIMITED,Programme Spend (Oracle Projects Control Account)
FCO,FCO,14/12/2016,8687544,160785,DANISH DEMINING GROUP,Programme Spend (Oracle Projects Control Account)
FCO,FCO,29/12/2016,8800697,160675.63,COMPUTACENTER UK LTD,IT/IS Consultancy
FCO,FCO,16/12/2016,8712324,160429.09,ISS FACILITY SERVICES LTD FCO OP - POE,Multiple Accounts
FCO,FCO,07/12/2016,8602428,160000,UNITED NATIONS,Programme Spend (Oracle Projects Control Account)
FCO,FCO,09/12/2016,8625571,159603.1,THE HALO TRUST,Programme Spend (Oracle Projects Control Account)
FCO,FCO,14/12/2016,8687461,159174.5,BIDWELLS,Rental Payments - non residential
FCO,FCO,23/12/2016,8784528,158730.31,PRICEWATERHOUSE COOPERS LLP,Programme Spend (Oracle Projects Control Account)
FCO,FCO,22/12/2016,8772664,157277.52,INDEPENDENT DIPLOMATS,Programme Spend (Oracle Projects Control Account)
FCO,FCO,08/12/2016,8610441,156720.31,CATHOLIC RELIEF SERVICES,Programme Spend (Oracle Projects Control Account)
FCO,FCO,15/12/2016,8697458,156196,IOM INTERNATIONAL ORG FOR MIGRATION,Programme Spend (Oracle Projects Control Account)
FCO,FCO,16/12/2016,8717488,155439.5,SEGURIDAD SOCIAL,Multiple Accounts
FCO,FCO,28/12/2016,8793516,153637,TRANSNATIONAL CRISIS PROJECT,Programme Spend (Oracle Projects Control Account)
FCO,FCO,06/12/2016,8586649,152500,COLLIERS,Estates Management Services
FCO,FCO,22/12/2016,8778430,151462.35,GLOBAL PARTNERS GOVERNANCE PRACTICE LTD,Programme Spend (Oracle Projects Control Account)
FCO,FCO,19/12/2016,8723470,151398.26,ARK GROUP DMCC,Programme Spend (Oracle Projects Control Account)
FCO,FCO,30/12/2016,8803562,151132.22,FCO SERVICES,Assets Under Construction (Oracle PA Control Account)
FCO,FCO,14/12/2016,8686451,150000,CROWN ESTATE COMMIS CASH A C,Rental Payments - non residential
FCO,FCO,07/12/2016,8596438,149082.11,AGA KHAN FOUNDATION AFGHANISTAN,Programme Spend (Oracle Projects Control Account)
FCO,FCO,01/12/2016,8380614,148571.9,NABIL HIRBAWI,Rental Payments - residential
FCO,FCO,01/12/2016,8514431,144772.4,GLOBAL C ENGAGE RESILIENCE,Programme Spend (Oracle Projects Control Account)
FCO,FCO,16/12/2016,8712218,140232.7,INTERSERVE FM LTD,Construction Project more than 10k
FCO,FCO,16/12/2016,8712321,140108.02,ISS FACILITY SERVICES LTD FCO OP - POE,Multiple Accounts
FCO,FCO,19/12/2016,8726479,140000,UNDP CONTRIBUTIONS,Programme Spend (Oracle Projects Control Account)
FCO,FCO,06/12/2016,8586854,139669.39,GOVERNMENT COMMUNICATIONS BUREAU  ADMIN A/C 6253,Customer Refund Account
FCO,FCO,13/12/2016,8672428,138844.89,GLOBAL C ENGAGE RESILIENCE,Programme Spend (Oracle Projects Control Account)
FCO,FCO,02/12/2016,8575592,138311.62,GENERALI ESTATE SPA,Multiple Accounts
FCO,FCO,21/12/2016,8761436,136873.34,OROSTREAM INTERNATIONAL CONTRACTS LTD,Construction Project more than 10k
FCO,FCO,15/12/2016,8697606,136107,IOM INTERNATIONAL ORG FOR MIGRATION,Programme Spend (Oracle Projects Control Account)
FCO,FCO,15/12/2016,8705468,136107,IOM INTERNATIONAL ORG FOR MIGRATION,Programme Spend (Oracle Projects Control Account)
FCO,FCO,13/12/2016,8664439,135708.96,BBC MEDIA ACTION,Programme Spend (Oracle Projects Control Account)
FCO,FCO,22/12/2016,8777489,135184,MILTON KEYNES COUNCIL,Rates Taxes Non-Residential
FCO,FCO,22/12/2016,8777485,134605.45,INTERNATIONAL RELIEF AND DEVELOPMENT,Programme Spend (Oracle Projects Control Account)
FCO,FCO,16/12/2016,8712330,132920.3,ISS FACILITY SERVICES LTD FCO OP - POE,Multiple Accounts
FCO,FCO,05/12/2016,8579600,132061.89,AFRICAN SKIES LTD,Local Guards
FCO,FCO,22/12/2016,8774564,131250,SCENESAFE LTD,Programme Spend (Oracle Projects Control Account)
FCO,FCO,30/12/2016,8803541,130371,FCO SERVICES,Assets Under Construction (Oracle PA Control Account)
FCO,FCO,22/12/2016,8777515,130276.98,ECORYS GROUP UK,Programme Spend (Oracle Projects Control Account)
FCO,FCO,20/12/2016,8744565,130000,GENEVA CENTRE FOR THE DEMOCRATIC CONTROL OF ARMED FORCES - DCAF,Programme Spend (Oracle Projects Control Account)
FCO,FCO,07/12/2016,8597588,129887.84,LANGUAGE SERVICES DIRECT,Language Tuition: Essential
FCO,FCO,22/12/2016,8773635,127524.33,BBC MEDIA ACTION,Programme Spend (Oracle Projects Control Account)
FCO,FCO,20/12/2016,8756794,127000,UNITED NATIONS,Programme Spend (Oracle Projects Control Account)
FCO,FCO,01/12/2016,8494427,126759.4,GAKURU JEAN DE LA CROIX,Rental Payments - non residential
FCO,FCO,01/12/2016,8345121,126496.02,SKA INTERNATIONAL GROUP,Multiple Accounts
FCO,FCO,15/12/2016,8698434,125654.83,MINES ADVISORY GROUP,Programme Spend (Oracle Projects Control Account)
FCO,FCO,16/12/2016,8712334,125400.07,ISS FACILITY SERVICES LTD FCO OP - POE,Multiple Accounts
FCO,FCO,29/12/2016,8802428,125096.22,COMPUTACENTER UK LTD,Information Systems Maintenance
FCO,FCO,16/12/2016,8712337,124604.81,ISS FACILITY SERVICES LTD FCO OP - POE,Multiple Accounts
FCO,FCO,28/12/2016,8793539,124096,BBC MEDIA ACTION,Programme Spend (Oracle Projects Control Account)
FCO,FCO,13/12/2016,8664433,123409.81,BBC MEDIA ACTION,Programme Spend (Oracle Projects Control Account)
FCO,FCO,02/12/2016,8576432,123101.3,FCO SERVICES,Construction Project more than 10k
FCO,FCO,13/12/2016,8661467,122998.82,CBRE LTD,Estates Management Services
FCO,FCO,14/12/2016,8686426,122685,MAXWELL STAMP PLC,Programme Spend (Oracle Projects Control Account)
FCO,FCO,21/12/2016,8765438,122420,UNITED NATIONS,Programme Spend (Oracle Projects Control Account)
FCO,FCO,29/12/2016,8799473,121731.83,NATIONAL HOTEL COMPLEX,Rental Payments - non residential
FCO,FCO,23/12/2016,8783539,120364.16,OROSTREAM INTERNATIONAL CONTRACTS LTD,Assets Under Construction (Oracle PA Control Account)
FCO,FCO,12/12/2016,8644508,119791.65,DAI EUROPE LIMITED,Programme Spend (Oracle Projects Control Account)
FCO,FCO,15/12/2016,8692497,119687.61,ADP,Multiple Accounts
FCO,FCO,21/12/2016,8762568,119674.97,NELSON LUXEMBOURG PROPRTY DEVLOPMT,Rental Payments - non residential
FCO,FCO,21/12/2016,8761443,118634,IISS - INTERNATIONAL INSTITUTE FOR STRATEGIC STUDIES,Programme Spend (Oracle Projects Control Account)
FCO,FCO,30/12/2016,8803508,117449.88,FCO SERVICES,IT/IS Consultancy
FCO,FCO,08/12/2016,8617429,117178.75,CABINET OFFICE,Early Retirement Costs (Pre VES)
FCO,FCO,13/12/2016,8660783,117037.75,ETANA,Programme Spend (Oracle Projects Control Account)
FCO,FCO,28/12/2016,8788491,116598.21,TROPICAL POWER LTD,Programme Spend (Oracle Projects Control Account)
FCO,FCO,30/12/2016,8803556,116483.02,FCO SERVICES,Assets Under Construction (Oracle PA Control Account)
FCO,FCO,23/12/2016,8784514,116277,S MACNEILLIE & SON LTD,Assets Under Construction (Oracle PA Control Account)
FCO,FCO,29/12/2016,8800577,115130,STRATAGEM CONSULTING,Programme Spend (Oracle Projects Control Account)
FCO,FCO,20/12/2016,8739508,114364.76,BHC INDIA STAFF PROVIDENT FUND,Multiple Accounts
FCO,FCO,02/12/2016,8571467,114024.54,KOMATSUBARA KOMUTEN LTD,Recharge Suspense Account (Oracle PA Control Account)
FCO,FCO,21/12/2016,8760537,113967.66,ADP,Multiple Accounts
FCO,FCO,12/12/2016,8650443,112724.65,ISS FACILITY SERVICES LTD FCO OP,Multiple Accounts
FCO,FCO,12/12/2016,8650437,112378.47,ISS FACILITY SERVICES LTD FCO OP,Multiple Accounts
FCO,FCO,06/12/2016,8586598,111782.71,OROSTREAM INTERNATIONAL CONTRACTS LTD,Construction Project more than 10k
FCO,FCO,12/12/2016,8647481,109818.71,COMPUTACENTER UK LTD,Assets Under Construction (Oracle PA Control Account)
FCO,FCO,08/12/2016,8609514,107324.45,DEUTSCHER LEVANTE VERLAG GMBH,Programme Spend (Oracle Projects Control Account)
FCO,FCO,01/12/2016,8566427,107250.06,ALLEN VANGUARD LTD,Assets Under Construction (Oracle PA Control Account)
FCO,FCO,12/12/2016,8647599,106765.76,HEALIX INTERNATIONAL LTD,FCO Healthcare Scheme
FCO,FCO,16/12/2016,8717451,106748,UNITED NATIONS,Programme Spend (Oracle Projects Control Account)
FCO,FCO,14/12/2016,8685426,106250,CROWN ESTATE COMMIS CASH A C,Rental Payments - residential
FCO,FCO,08/12/2016,8621619,106013.9,NORTH HIGHLAND UK LTD,Specialist Contractors
FCO,FCO,23/12/2016,8784453,105632.07,AKTIS STRATEGY,Programme Spend (Oracle Projects Control Account)
FCO,FCO,15/12/2016,8694471,105188.27,PILDAT,Programme Spend (Oracle Projects Control Account)
FCO,FCO,30/12/2016,8803500,105090,UNITED NATIONS,Programme Spend (Oracle Projects Control Account)
FCO,FCO,29/12/2016,8800456,104550.56,THE SHAIKH GROUP,Programme Spend (Oracle Projects Control Account)
FCO,FCO,28/12/2016,8794427,103684.5,THE CONSTRUCTION SECTOR TRANSPARENCY INITIATIVE,Programme Spend (Oracle Projects Control Account)
FCO,FCO,28/12/2016,8793459,103357.33,THE HALO TRUST,Programme Spend (Oracle Projects Control Account)
FCO,FCO,21/12/2016,8758837,102478.57,EUROPEAN ENDOWMENT FOR DEMOCRACY,Programme Spend (Oracle Projects Control Account)
FCO,FCO,28/12/2016,8793513,102424,TRANSNATIONAL CRISIS PROJECT,Programme Spend (Oracle Projects Control Account)
FCO,FCO,28/12/2016,8793517,102424,TRANSNATIONAL CRISIS PROJECT,Programme Spend (Oracle Projects Control Account)
FCO,FCO,30/12/2016,8803468,102335,BRITSOURCE INTERNATIONAL,"Purchase of Furniture, Fittings and Domestic Appliances"
FCO,FCO,05/12/2016,8580041,101972.6,THE SHAIKH GROUP,Programme Spend (Oracle Projects Control Account)
FCO,FCO,08/12/2016,8617442,101108,HYDROGRAPHIC OFFICE,Programme Spend (Oracle Projects Control Account)
FCO,FCO,29/12/2016,8800586,100773.56,CHIEF ACCOUNTANT & PAYMASTER,Representation of the FCO
FCO,FCO,09/12/2016,8625564,100000,UNITED NATIONS,Programme Spend (Oracle Projects Control Account)
FCO,FCO,12/12/2016,8644622,100000,THE HALO TRUST,Programme Spend (Oracle Projects Control Account)
FCO,FCO,16/12/2016,8717473,100000,AFGHANAID,Programme Spend (Oracle Projects Control Account)
FCO,FCO,20/12/2016,8746476,100000,UNDP CONTRIBUTIONS,Programme Spend (Oracle Projects Control Account)
FCO,FCO,21/12/2016,8764473,100000,INTERNATIONAL ALERT,Programme Spend (Oracle Projects Control Account)
FCO,FCO,21/12/2016,8761437,99261.39,INTER MEDIATE,Programme Spend (Oracle Projects Control Account)
FCO,FCO,16/12/2016,8712336,97959.7,ISS FACILITY SERVICES LTD FCO OP - POE,Multiple Accounts
FCO,FCO,28/12/2016,8787509,96768.74,BUSINESS FOR SOCIAL RESPONSIBILITY,Programme Spend (Oracle Projects Control Account)
FCO,FCO,02/12/2016,8574578,96426.94,CREATIVE ASSOCIATES,Programme Spend (Oracle Projects Control Account)
FCO,FCO,22/12/2016,8775453,94529.38,INTERNATIONAL BAR ASSOCIATION,Programme Spend (Oracle Projects Control Account)
FCO,FCO,28/12/2016,8788428,93990.63,KOMATSUBARA KOMUTEN LTD,Recharge Suspense Account (Oracle PA Control Account)
FCO,FCO,22/12/2016,8773531,93915.04,ITAD LTD,Programme Spend (Oracle Projects Control Account)
FCO,FCO,06/12/2016,8585440,93656.65,VOYA FINANCIAL,Multiple Accounts
FCO,FCO,22/12/2016,8771483,93396.94,CONTRIBUTORY PROVIDENT FUND,Multiple Accounts
FCO,FCO,21/12/2016,8759438,93285.76,EDENRED,Consolidated Volunteer Contribution
FCO,FCO,29/12/2016,8800609,93115,MOONSHOT CVE LTD,Programme Spend (Oracle Projects Control Account)
FCO,FCO,21/12/2016,8760535,92965.89,VOYA FINANCIAL,Multiple Accounts
FCO,FCO,23/12/2016,8784468,91225.53,VOYA FINANCIAL,Multiple Accounts
FCO,FCO,22/12/2016,8777490,90246,SCOTTISH POLICE SERVICES AUTHORITY,Programme Spend (Oracle Projects Control Account)
FCO,FCO,02/12/2016,8575589,90000,RISK ADVISORY GROUP PLC,Programme Spend (Oracle Projects Control Account)
FCO,FCO,07/12/2016,8602434,89355,CORE M AND E SERVICES LIMITED,Assets Under Construction (Oracle PA Control Account)
FCO,FCO,06/12/2016,8586576,88903.32,FCO SERVICES,IT/IS Consultancy
FCO,FCO,08/12/2016,8619443,88825,STAKEHOLDER DEMOCRACY NETWORK,Programme Spend (Oracle Projects Control Account)
FCO,FCO,22/12/2016,8778435,88693.35,PICKFORDS MOVE MANAGEMENT LTD,Employee Default Expense (restricted use)
FCO,FCO,30/12/2016,8803473,88271,HOME OFFICE,Programme Spend (Oracle Projects Control Account)
FCO,FCO,21/12/2016,8761583,88057,OECD,Programme Spend (Oracle Projects Control Account)
FCO,FCO,07/12/2016,8596434,87873.19,G4S RISK MANAGEMENT LTD,Programme Spend (Oracle Projects Control Account)
FCO,FCO,29/12/2016,8800668,87700,DSFA  DIPLOMATIC SERVICE FAMILIES ASSOCIATION,DSFA
FCO,FCO,16/12/2016,8717508,86668.33,ITAD LTD,Programme Spend (Oracle Projects Control Account)
FCO,FCO,28/12/2016,8793544,86517.88,BAE SYSTEMS APPLIED INTELLIGENCE LIMITED,Multiple Accounts
FCO,FCO,16/12/2016,8717493,85344.98,SYNERGY FOR JUSTICE LTD,Programme Spend (Oracle Projects Control Account)
FCO,FCO,21/12/2016,8761547,85236.27,NI CO OPERATION OVERSEAS NI CO LTD,Programme Spend (Oracle Projects Control Account)
FCO,FCO,08/12/2016,8617430,85154.18,OROSTREAM INTERNATIONAL CONTRACTS LTD,Construction Project more than 10k
FCO,FCO,14/12/2016,8686448,84994.06,SECUREX AGENCIES LTD,Staff and Other Advances AP Control (Oracle Ap Control Account)
FCO,FCO,28/12/2016,8788489,83854.24,AKTIS STRATEGY,Programme Spend (Oracle Projects Control Account)
FCO,FCO,28/12/2016,8794594,83831.99,NI CO OPERATION OVERSEAS NI CO LTD,Programme Spend (Oracle Projects Control Account)
FCO,FCO,15/12/2016,8704495,83323.39,SECURITY SERVICES GROUP,Misc Security Payments
FCO,FCO,20/12/2016,8751427,83208,COMPUTACENTER UK LTD,IT/IS Consultancy
FCO,FCO,05/12/2016,8580209,83067.5,MINIMAL RISK CONSULTANCY LTD,UK Guarding Contracts Overseas
FCO,FCO,21/12/2016,8764444,82467.27,TORCHLIGHT SOLUTIONS LTD,Programme Spend (Oracle Projects Control Account)
FCO,FCO,15/12/2016,8704427,82188.59,SECURITY SERVICES GROUP,Assets Under Construction (Oracle PA Control Account)
FCO,FCO,16/12/2016,8714452,81752.87,SUPREME PEOPLE'S COURT OF VIETNAM,Programme Spend (Oracle Projects Control Account)
FCO,FCO,21/12/2016,8762565,81621.31,NELSON LUXEMBOURG PROPRTY DEVLOPMT,Rental Payments - non residential
FCO,FCO,23/12/2016,8784433,81369.66,FCO SERVICES,Residential Property Services
FCO,FCO,29/12/2016,8798503,80236,POWER ELECTRICS GENERATORS LTD,Assets Under Construction (Oracle PA Control Account)
FCO,FCO,12/12/2016,8634518,80188.53,NGO MEDIA REFORMS CENTRE,Programme Spend (Oracle Projects Control Account)
FCO,FCO,15/12/2016,8695487,80000,OECD,Programme Spend (Oracle Projects Control Account)
FCO,FCO,29/12/2016,8799437,79994.67,SHEIKH TAHNOON BIN  AL NAHAYYAN,Recharge Suspense Account (Oracle PA Control Account)
FCO,FCO,20/12/2016,8756450,79578.18,ALBANY ASSOCIATES,Programme Spend (Oracle Projects Control Account)
FCO,FCO,01/12/2016,8562658,79569.98,PA CONSULTING GROUP,Programme Spend (Oracle Projects Control Account)
FCO,FCO,28/12/2016,8788558,79511.47,CRIMINAL JUSTICE TASK FORCE - CJTF,Recharge Suspense Account (Oracle PA Control Account)
FCO,FCO,20/12/2016,8742486,79382,RTKL-UK LTD,Assets Under Construction (Oracle PA Control Account)
FCO,FCO,21/12/2016,8765505,78853.38,INTERNATIONAL ALERT,Programme Spend (Oracle Projects Control Account)
FCO,FCO,28/12/2016,8794434,76562.4,L E K CONSULTING LIMITED,Programme Spend (Oracle Projects Control Account)
FCO,FCO,28/12/2016,8788501,75468,DANISH REFUGEE COUNCIL,Programme Spend (Oracle Projects Control Account)
FCO,FCO,13/12/2016,8660051,75435.33,GO GROUP NLE,Programme Spend (Oracle Projects Control Account)
FCO,FCO,28/12/2016,8787583,75362.99,HARIS ENTERPRISES PVT LTD,Local Guards
FCO,FCO,21/12/2016,8762544,75136.06,ETANA,Programme Spend (Oracle Projects Control Account)
FCO,FCO,06/12/2016,8586627,75000,COLLIERS,Estates Management Services
FCO,FCO,14/12/2016,8687666,75000,INTERNATIONAL CRIMINAL COURT,Programme Spend (Oracle Projects Control Account)
FCO,FCO,15/12/2016,8698430,74893,CORPORATE TELEVISION NETWORK LTD,Programme Spend (Oracle Projects Control Account)
FCO,FCO,21/12/2016,8761460,74772.01,DEBRO LTD,Rental Payments - residential
FCO,FCO,06/12/2016,8586784,74575.83,ABROTEA BULGARIA AD,Multiple Accounts
FCO,FCO,12/12/2016,8647527,74079.02,COMPUTACENTER UK LTD,Assets Under Construction (Oracle PA Control Account)
FCO,FCO,20/12/2016,8751432,73848,BAE SYSTEMS APPLIED INTELLIGENCE LIMITED,IT/IS Consultancy
FCO,FCO,01/12/2016,8559441,73789.61,ERNST & YOUNG (CHINA) ADVISORY LIMITED,Programme Spend (Oracle Projects Control Account)
FCO,FCO,15/12/2016,8705531,73241.38,MEEDAN,Programme Spend (Oracle Projects Control Account)
FCO,FCO,22/12/2016,8777519,73084,ECORYS GROUP UK,Programme Spend (Oracle Projects Control Account)
FCO,FCO,30/12/2016,8803499,72930,BAE SYSTEMS APPLIED INTELLIGENCE LIMITED,Information Systems Maintenance
FCO,FCO,28/12/2016,8788475,72771.2,COFFEY INTERNATIONAL DEVELOPMENT,Programme Spend (Oracle Projects Control Account)
FCO,FCO,20/12/2016,8756500,72596.82,CBRE LTD,Costs Associated with the Disposal of Capitalised Assets
FCO,FCO,07/12/2016,8597603,72340.02,LANGUAGE SERVICES DIRECT,Language Tuition: Essential
FCO,FCO,29/12/2016,8799471,72276.82,ROBERT GORDON UNIVERSITY,Programme Spend (Oracle Projects Control Account)
FCO,FCO,20/12/2016,8739499,71863.59,CENTRAL PROVIDENT FUND BOARD,Multiple Accounts
FCO,FCO,15/12/2016,8697561,71560.44,FRP OTHER DEBTORS,Programme Spend (Oracle Projects Control Account)
FCO,FCO,20/12/2016,8742524,71528.37,NCA NATIONAL CRIME AGENCY,Programme Spend (Oracle Projects Control Account)
FCO,FCO,01/12/2016,8566446,70963.88,UNITED NATIONS UNIVERSITY,Programme Spend (Oracle Projects Control Account)
FCO,FCO,12/12/2016,8650430,70778.23,ISS FACILITY SERVICES LTD FCO OP,Multiple Accounts
FCO,FCO,14/12/2016,8679459,70557.26,PICKFORDS MOVE MANAGEMENT LTD,Employee Default Expense (restricted use)
FCO,FCO,01/12/2016,8566453,70516.2,COMPUTACENTER UK LTD,Assets Under Construction (Oracle PA Control Account)
FCO,FCO,14/12/2016,8687644,70511.54,EUROPEAN MEDICINES AGENCY,Protocol - General VAT Refunds to Other Organisations
FCO,FCO,21/12/2016,8758847,70480.54,EUROPEAN ENDOWMENT FOR DEMOCRACY,Programme Spend (Oracle Projects Control Account)
FCO,FCO,20/12/2016,8756494,70332.96,TRANSPARENCIA MEXICANA AC,Programme Spend (Oracle Projects Control Account)
FCO,FCO,09/12/2016,8628551,70179,PECHTER POLLS,Programme Spend (Oracle Projects Control Account)
FCO,FCO,12/12/2016,8639604,70146.34,CARBON TRUST ADVISORY LTD,Programme Spend (Oracle Projects Control Account)
FCO,FCO,14/12/2016,8687591,69896.86,EUROPEAN PARLIAMENT,Protocol - General VAT Refunds to Other Organisations
FCO,FCO,20/12/2016,8742468,69669,FUTURE CITIES CATAPULT,Programme Spend (Oracle Projects Control Account)
FCO,FCO,09/12/2016,8624759,69485.35,INTERNATIONAL RELIEF AND DEVELOPMENT,Programme Spend (Oracle Projects Control Account)
FCO,FCO,22/12/2016,8777553,69361.62,AKTIS STRATEGY,Programme Spend (Oracle Projects Control Account)
FCO,FCO,22/12/2016,8773624,69312.66,ARK GROUP DMCC,Programme Spend (Oracle Projects Control Account)
FCO,FCO,06/12/2016,8586632,69283.89,KENT CONSTRUCTION LIMITED,Assets Under Construction (Oracle PA Control Account)
FCO,FCO,09/12/2016,8628424,69247.6,ARK GROUP DMCC,Programme Spend (Oracle Projects Control Account)
FCO,FCO,12/12/2016,8650458,69025.79,ISS FACILITY SERVICES LTD FCO OP,Multiple Accounts
FCO,FCO,20/12/2016,8744435,69025.11,BRITISH COUNCIL,Programme Spend (Oracle Projects Control Account)
FCO,FCO,21/12/2016,8761473,68535,RISHI KESHAV SHAH,Rental Payments - non residential
FCO,FCO,19/12/2016,8736466,68457,BIDWELLS,Rental Payments - non residential
FCO,FCO,13/12/2016,8660567,68349.72,UNITED NATIONS,Programme Spend (Oracle Projects Control Account)
FCO,FCO,08/12/2016,8610555,67961.94,DIPLOMAT FREIGHT SERVICES LTD(DFS),Multiple Accounts
FCO,FCO,29/12/2016,8799479,67328.3,COMPUTACENTER UK LTD,Assets Under Construction (Oracle PA Control Account)
FCO,FCO,14/12/2016,8682487,66851.93,FUTURE CITIES CATAPULT,Programme Spend (Oracle Projects Control Account)
FCO,FCO,13/12/2016,8663469,66666.91,UNDP CONTRIBUTIONS,Programme Spend (Oracle Projects Control Account)
FCO,FCO,12/12/2016,8650425,66361.87,ISS FACILITY SERVICES LTD FCO OP,Multiple Accounts
FCO,FCO,29/12/2016,8798499,66147,POWER ELECTRICS GENERATORS LTD,Multiple Accounts
FCO,FCO,16/12/2016,8712323,65957.89,ISS FACILITY SERVICES LTD FCO OP - POE,Multiple Accounts
FCO,FCO,16/12/2016,8712288,65757.46,INTERSERVE FM LTD,Multiple Accounts
FCO,FCO,13/12/2016,8659916,65591.13,LUCONEX SRL,Rental Payments - non residential
FCO,FCO,23/12/2016,8783566,65566.32,AETNA,Multiple Accounts
FCO,FCO,22/12/2016,8772668,65412.35,FOUNTAINHEAD ENTERTAINMENT PVT LTD,Exhibitions
FCO,FCO,15/12/2016,8704508,65365.24,IMMOTEX SA,Multiple Accounts
FCO,FCO,30/12/2016,8803531,65015,INTER MEDIATE,Programme Spend (Oracle Projects Control Account)
FCO,FCO,19/12/2016,8722490,64994.29,PEKING UNIVERSITY,Programme Spend (Oracle Projects Control Account)
FCO,FCO,22/12/2016,8772651,64896,QUANTUM COMMUNICATIONS INTERNATIONAL LTD,Programme Spend (Oracle Projects Control Account)
FCO,FCO,15/12/2016,8704449,64729.81,STOOF INTERNATIONAL VERTRIEBSGESELLSCHAFT MBH,Assets Under Construction (Oracle PA Control Account)
FCO,FCO,15/12/2016,8704456,64729.81,STOOF INTERNATIONAL VERTRIEBSGESELLSCHAFT MBH,Assets Under Construction (Oracle PA Control Account)
FCO,FCO,15/12/2016,8704459,64729.81,STOOF INTERNATIONAL VERTRIEBSGESELLSCHAFT MBH,Assets Under Construction (Oracle PA Control Account)
FCO,FCO,20/12/2016,8756446,64729.81,STOOF INTERNATIONAL VERTRIEBSGESELLSCHAFT MBH,Assets Under Construction (Oracle PA Control Account)
FCO,FCO,20/12/2016,8756451,64729.81,STOOF INTERNATIONAL VERTRIEBSGESELLSCHAFT MBH,Assets Under Construction (Oracle PA Control Account)
FCO,FCO,20/12/2016,8756455,64729.81,STOOF INTERNATIONAL VERTRIEBSGESELLSCHAFT MBH,Assets Under Construction (Oracle PA Control Account)
FCO,FCO,14/12/2016,8684455,64708.97,ADAM SMITH INTERNATIONAL,Programme Spend (Oracle Projects Control Account)
FCO,FCO,02/12/2016,8572433,64445.09,SKA INTERNATIONAL GROUP,Multiple Accounts
FCO,FCO,12/12/2016,8649436,64191.82,FUNDACAO ESCOLA DE SOCIOLOGIA E POLITICA DE SAO PAULO,Programme Spend (Oracle Projects Control Account)
FCO,FCO,21/12/2016,8765435,64150,WILTON PARK EXECUTIVE AGENCY,Programme Spend (Oracle Projects Control Account)
FCO,FCO,12/12/2016,8647538,64126.5,COMPUTACENTER UK LTD,Specialist Contractors
FCO,FCO,21/12/2016,8761464,63675,DEPARTMENT FOR INTERNATIONAL TRADE,Programme Spend (Oracle Projects Control Account)
FCO,FCO,15/12/2016,8697542,63656.25,FCO SERVICES,IT/IS Consultancy
FCO,FCO,02/12/2016,8576439,63391.76,FCO SERVICES,Construction Project more than 10k
FCO,FCO,29/12/2016,8798467,63324.54,HUSSEIN SANYA JUSSA,Rental Payments - residential
FCO,FCO,19/12/2016,8725459,62944.6,ACCESS NOW,Programme Spend (Oracle Projects Control Account)
FCO,FCO,09/12/2016,8628426,62835.55,ADAM SMITH INTERNATIONAL,Programme Spend (Oracle Projects Control Account)
FCO,FCO,02/12/2016,8575516,62546.22,COMPUTACENTER UK LTD,Information Systems Maintenance
FCO,FCO,22/12/2016,8777496,61978.6,FUTURE CITIES CATAPULT,Programme Spend (Oracle Projects Control Account)
FCO,FCO,12/12/2016,8644454,61912.06,SUDO UK,Programme Spend (Oracle Projects Control Account)
FCO,FCO,09/12/2016,8630507,61614.61,ADAM SMITH INTERNATIONAL,Programme Spend (Oracle Projects Control Account)
FCO,FCO,28/12/2016,8794577,61460,ARCADIS LLP,Programme Spend (Oracle Projects Control Account)
FCO,FCO,28/12/2016,8794557,61455.47,SISTEMA INTEGRADO MULTIPLE DE PAGOS,Multiple Accounts
FCO,FCO,28/12/2016,8794433,61333.29,L E K CONSULTING LIMITED,Programme Spend (Oracle Projects Control Account)
FCO,FCO,28/12/2016,8793503,60843.07,BDO LLP,Programme Spend (Oracle Projects Control Account)
FCO,FCO,28/12/2016,8788474,60617.42,ELECTRICITY COMPANY OF GHANA,Electricity Residential
FCO,FCO,28/12/2016,8788554,60465.13,GILBERT ASH LIMITED,Construction Project more than 10k
FCO,FCO,22/12/2016,8773495,60381.66,IKA,Multiple Accounts
FCO,FCO,02/12/2016,8576434,60226.23,FCO SERVICES,Assets Under Construction (Oracle PA Control Account)
FCO,FCO,07/12/2016,8605439,60166.65,PROSPECTIVA PROJETOS LTDA,Programme Spend (Oracle Projects Control Account)
FCO,FCO,06/12/2016,8586614,60000,COLLIERS,Estates Management Services
FCO,FCO,06/12/2016,8586559,59864.03,KOIZA INTERNATIONAL LTD,Multiple Accounts
FCO,FCO,16/12/2016,8712227,59666.34,INTERSERVE FM LTD,Construction Project more than 10k
FCO,FCO,21/12/2016,8762535,59571.84,PA CONSULTING GROUP,Programme Spend (Oracle Projects Control Account)
FCO,FCO,23/12/2016,8783443,59545,BRITISH COUNCIL ALGERIA,Programme Spend (Oracle Projects Control Account)
FCO,FCO,23/12/2016,8783428,59470,S MACNEILLIE & SON LTD,Assets Under Construction (Oracle PA Control Account)
FCO,FCO,15/12/2016,8697521,59272.39,BARTON ENGINEERING AND EXPORT,Repairs And Refurbishment: Works Residential
FCO,FCO,30/12/2016,8803542,59148,FCO SERVICES,Repairs And Refurbishment: Works Residential
FCO,FCO,22/12/2016,8773444,58815.81,ADAM SMITH INTERNATIONAL,Programme Spend (Oracle Projects Control Account)
FCO,FCO,12/12/2016,8647484,58781.78,ADVICE ON INDIVIDUAL RIGHTS IN EUROPE,Programme Spend (Oracle Projects Control Account)
FCO,FCO,13/12/2016,8661528,58750,POWER ELECTRICS GENERATORS LTD,Assets Under Construction (Oracle PA Control Account)
FCO,FCO,15/12/2016,8694425,58748.36,STANDARD BANK OF MALAWI,Multiple Accounts
FCO,FCO,16/12/2016,8712309,58604.51,INTERSERVE FM LTD,Multiple Accounts
FCO,FCO,23/12/2016,8783482,58591.58,UNIVERSITY OF LEICESTER,Programme Spend (Oracle Projects Control Account)
FCO,FCO,20/12/2016,8739573,58449.95,BEIJING GENERAL MUNICIPAL ENGINEERING DESIGN AND RESEARCH INSTITUTE,Programme Spend (Oracle Projects Control Account)
FCO,FCO,08/12/2016,8618447,58145,HYDROGRAPHIC OFFICE,Programme Spend (Oracle Projects Control Account)
FCO,FCO,19/12/2016,8724448,57934,SATELLITE APPLICATIONS CATAPULT LTD,Programme Spend (Oracle Projects Control Account)
FCO,FCO,22/12/2016,8772681,57816.5,BUPA INTERNATIONAL,Multiple Accounts
FCO,FCO,13/12/2016,8660790,57810,UNDP CONTRIBUTIONS,Programme Spend (Oracle Projects Control Account)
FCO,FCO,19/12/2016,8734435,57648,NALED,Programme Spend (Oracle Projects Control Account)
FCO,FCO,05/12/2016,8579914,57514.47,AETNA,Multiple Accounts
FCO,FCO,12/12/2016,8649437,57463.63,FUNDACAO ESCOLA DE SOCIOLOGIA E POLITICA DE SAO PAULO,Programme Spend (Oracle Projects Control Account)
FCO,FCO,14/12/2016,8681446,57438.02,PICKFORDS MOVE MANAGEMENT LTD,Employee Default Expense (restricted use)
FCO,FCO,12/12/2016,8650451,57352.98,ISS FACILITY SERVICES LTD FCO OP,Multiple Accounts
FCO,FCO,13/12/2016,8668542,57309.19,INTERSERVE FM LTD,Multiple Accounts
FCO,FCO,06/12/2016,8586609,57286.58,TURNER AND TOWNSEND PROPERTY SERVICES,Assets Under Construction (Oracle PA Control Account)
FCO,FCO,16/12/2016,8718483,57115.17,PRICEWATERHOUSE COOPERS LLP,Programme Spend (Oracle Projects Control Account)
FCO,FCO,16/12/2016,8712228,57018.46,INTERSERVE FM LTD,Construction Project more than 10k
FCO,FCO,22/12/2016,8778443,56850.63,PICKFORDS MOVE MANAGEMENT LTD,Employee Default Expense (restricted use)
FCO,FCO,15/12/2016,8691531,56845.3,ELIXIR CO,Programme Spend (Oracle Projects Control Account)
FCO,FCO,19/12/2016,8728431,56802.18,BAE SYSTEMS APPLIED INTELLIGENCE LIMITED,Specialist Contractors
FCO,FCO,21/12/2016,8762492,56602.33,UK COLOMBIA TRADE,Miscellaneous Expenditure: inc subscriptions and equipment maintenance
FCO,FCO,14/12/2016,8680477,56485.82,PICKFORDS MOVE MANAGEMENT LTD,Employee Default Expense (restricted use)
FCO,FCO,28/12/2016,8788510,56459.78,CARBON TRUST BEIJING CONSULTING LIMITED,Programme Spend (Oracle Projects Control Account)
FCO,FCO,14/12/2016,8677338,56211.7,AZERBAIJAN NATIONAL AGENCY FOR MINE ACTIONS,Programme Spend (Oracle Projects Control Account)
FCO,FCO,15/12/2016,8692477,56173.72,COURTNEY HOUSE LEARNING CENTRE,Schooling for Children at Post
FCO,FCO,07/12/2016,8599521,56144,COMPUTACENTER UK LTD,Specialist Contractors
FCO,FCO,28/12/2016,8793547,56129,TRIAL,Programme Spend (Oracle Projects Control Account)
FCO,FCO,09/12/2016,8626442,56039.37,CNI CONFEDERACAO NACIONAL DA INDUSTRIA,Programme Spend (Oracle Projects Control Account)
FCO,FCO,28/12/2016,8794560,55910,CBRE LTD,Proceeds from Assets held for sale
FCO,FCO,06/12/2016,8586714,55877.09,ASSOCIATION OF COLLEGES,Programme Spend (Oracle Projects Control Account)
FCO,FCO,22/12/2016,8777487,55806.69,CARBON TRUST ADVISORY LTD,Programme Spend (Oracle Projects Control Account)
FCO,FCO,28/12/2016,8788526,55457.3,SHANGHAI MEDICAL INFORMATION CENTER SHANGHAI HEALTH DEVELOPMENT RESEARCH CENTER,Programme Spend (Oracle Projects Control Account)
FCO,FCO,08/12/2016,8617438,55412,HYDROGRAPHIC OFFICE,Programme Spend (Oracle Projects Control Account)
FCO,FCO,08/12/2016,8610516,55339.32,COFFEY INTERNATIONAL DEVELOPMENT,Programme Spend (Oracle Projects Control Account)
FCO,FCO,21/12/2016,8759431,55070,AKTIS STRATEGY,Programme Spend (Oracle Projects Control Account)
FCO,FCO,20/12/2016,8750426,54725,AXIOM INTERNATIONAL LTD,Programme Spend (Oracle Projects Control Account)
FCO,FCO,09/12/2016,8624429,54689.37,AYE AYE MYINT,Rental Payments - residential
FCO,FCO,14/12/2016,8679451,54618.41,UNIVERSITY OF LONDON,Programme Spend (Oracle Projects Control Account)
FCO,FCO,12/12/2016,8647486,54573,COMPUTACENTER UK LTD,Assets Under Construction (Oracle PA Control Account)
FCO,FCO,16/12/2016,8718465,54546,VESTGUARD UK LTD,Misc Security Payments
FCO,FCO,08/12/2016,8617424,53978.46,RANGER PROTECTION AND SECURITY COMPANY LTD,Local Guards
FCO,FCO,22/12/2016,8777491,53923.2,RANGER PROTECTION AND SECURITY COMPANY LTD,Local Guards
FCO,FCO,12/12/2016,8634446,53731.04,DESBRO HOLDINGS KENYA LTD,Rental Payments - residential
FCO,FCO,13/12/2016,8661493,53510,THE HENRY L STIMSON CENTER,Programme Spend (Oracle Projects Control Account)
FCO,FCO,23/12/2016,8784504,53508.94,GLOBAL PARTNERS GOVERNANCE PRACTICE LTD,Programme Spend (Oracle Projects Control Account)
FCO,FCO,02/12/2016,8575580,53475.9,RTKL-UK LTD,Assets Under Construction (Oracle PA Control Account)
FCO,FCO,12/12/2016,8645475,53454.82,CAUSEWAY INSTITUTE FOR PEACE BUILDING AND CONFLICT RESOLUTION,Programme Spend (Oracle Projects Control Account)
FCO,FCO,22/12/2016,8775474,53435.53,ASSOCIATION OF COLLEGES,Programme Spend (Oracle Projects Control Account)
FCO,FCO,13/12/2016,8661520,53319,CENTRE FOR HUMANITARIAN DIALOGUE,Programme Spend (Oracle Projects Control Account)
FCO,FCO,16/12/2016,8717498,53100.71,GREAT BRITAIN-CHINA CENTRE,Programme Spend (Oracle Projects Control Account)
FCO,FCO,01/12/2016,8561468,53099.06,INTERNATIONAL SCHOOL OF ISLAMABAD SOCIETY,Schooling for Children at Post
FCO,FCO,22/12/2016,8772616,53017.53,TRANSPARENCY MALDIVES,Programme Spend (Oracle Projects Control Account)
FCO,FCO,01/12/2016,8562457,52981.27,TROPICAL POWER LTD,Programme Spend (Oracle Projects Control Account)
FCO,FCO,23/12/2016,8783425,52972,S MACNEILLIE & SON LTD,Assets Under Construction (Oracle PA Control Account)
FCO,FCO,08/12/2016,8610454,52393,DRAGON CAPITAL FINANCE LIMITED,Programme Spend (Oracle Projects Control Account)
FCO,FCO,21/12/2016,8766439,52332.69,GREAT BRITAIN-CHINA CENTRE,Programme Spend (Oracle Projects Control Account)
FCO,FCO,05/12/2016,8579632,52242.74,ELECTRONICS CENTER KABUL,General Information Services
FCO,FCO,29/12/2016,8797431,52230.27,G4S RISK MANAGEMENT LTD,Programme Spend (Oracle Projects Control Account)
FCO,FCO,02/12/2016,8575606,52218,BAE SYSTEMS APPLIED INTELLIGENCE LIMITED,Multiple Accounts
FCO,FCO,02/12/2016,8575597,52038,BOUYGUES CONSTRUCTION NIGERIA LIMITED,Assets Under Construction (Oracle PA Control Account)
FCO,FCO,02/12/2016,8576576,52038,BOUYGUES CONSTRUCTION NIGERIA LIMITED,Assets Under Construction (Oracle PA Control Account)
FCO,FCO,20/12/2016,8742506,52000,ROUSE AND CO INTERNATIONAL LLP,Programme Spend (Oracle Projects Control Account)
FCO,FCO,22/12/2016,8779431,51871.67,PICKFORDS MOVE MANAGEMENT LTD,Employee Default Expense (restricted use)
FCO,FCO,16/12/2016,8712335,51839.73,ISS FACILITY SERVICES LTD FCO OP - POE,Multiple Accounts
FCO,FCO,16/12/2016,8712216,51422.13,INTERSERVE FM LTD,Construction Project more than 10k
FCO,FCO,01/12/2016,8559433,51405.59,INTERNATIONAL DEPARTMENT ACWF,Programme Spend (Oracle Projects Control Account)
FCO,FCO,08/12/2016,8609434,51400,VISIT BRITAIN,Programme and Project Management Consultancy
FCO,FCO,02/12/2016,8576429,51385.4,FCO SERVICES,Construction Project more than 10k
FCO,FCO,19/12/2016,8723430,51381.99,SHEFFIELD HALLAM UNIVERSITY,Programme Spend (Oracle Projects Control Account)
FCO,FCO,20/12/2016,8756443,51299.75,ALBANY ASSOCIATES,Programme Spend (Oracle Projects Control Account)
FCO,FCO,08/12/2016,8618468,51253.65,ADAM SMITH INTERNATIONAL,Programme Spend (Oracle Projects Control Account)
FCO,FCO,22/12/2016,8772628,51210,INCLUSIVE SECURITY ACTION,Programme Spend (Oracle Projects Control Account)
FCO,FCO,28/12/2016,8788453,51197.62,CARBON TRUST ADVISORY LTD,Programme Spend (Oracle Projects Control Account)
FCO,FCO,01/12/2016,8562608,51048.72,GLOBAL PARTNERS GOVERNANCE PRACTICE LTD,Programme Spend (Oracle Projects Control Account)
FCO,FCO,01/12/2016,8562428,51040.63,FCO SERVICES,Assets Under Construction (Oracle PA Control Account)
FCO,FCO,28/12/2016,8794431,51000.31,ROYAL UNITED SERVICES INSTITUTE FOR DEFENCE AND SECURITY STUDIES,Programme Spend (Oracle Projects Control Account)
FCO,FCO,20/12/2016,8744540,50946.76,FERIEL OULD AOUDIA,Recharge Suspense Account (Oracle PA Control Account)
FCO,FCO,13/12/2016,8664452,50938.9,SERVEST MULTI SERVICE GROUP,Manned Guarding Services
FCO,FCO,12/12/2016,8639066,50676.52,PENAL REFORM INTERNATIONAL,Programme Spend (Oracle Projects Control Account)
FCO,FCO,06/12/2016,8586742,50607.32,S MACNEILLIE & SON LTD,Assets Under Construction (Oracle PA Control Account)
FCO,FCO,06/12/2016,8586745,50607.32,S MACNEILLIE & SON LTD,Assets Under Construction (Oracle PA Control Account)
FCO,FCO,06/12/2016,8586747,50607.32,S MACNEILLIE & SON LTD,Assets Under Construction (Oracle PA Control Account)
FCO,FCO,19/12/2016,8722684,50591.18,BRITISH COUNCIL,Programme Spend (Oracle Projects Control Account)
FCO,FCO,30/12/2016,8803470,50569,HOME OFFICE,Programme Spend (Oracle Projects Control Account)
FCO,FCO,05/12/2016,8580097,50475.73,TEAM LEYLAND INTERNATIONAL LTD,Assets Under Construction (Oracle PA Control Account)
FCO,FCO,12/12/2016,8635199,50455.39,ARM ECOSYSTEM ACCELERATOR,Programme Spend (Oracle Projects Control Account)
FCO,FCO,21/12/2016,8766449,50435.53,ASSOCIATION OF COLLEGES,Programme Spend (Oracle Projects Control Account)
FCO,FCO,21/12/2016,8761494,50068.57,ARSHAD JAMIL,Recharge Suspense Account (Oracle PA Control Account)
FCO,FCO,14/12/2016,8677342,50000.52,BLUE DRAGON CHILDREN FOUNDATION,Programme Spend (Oracle Projects Control Account)
FCO,FCO,09/12/2016,8625578,50000,UNITED NATIONS,Programme Spend (Oracle Projects Control Account)
FCO,FCO,28/12/2016,8788533,50000,BRITISH COUNCIL,Programme Spend (Oracle Projects Control Account)
FCO,FCO,01/12/2016,8568444,49951.5,OSCE ORG SECURITY COOPORATION EUROPE,Programme Spend (Oracle Projects Control Account)
FCO,FCO,16/12/2016,8712261,49937.37,INTERSERVE FM LTD,Multiple Accounts
FCO,FCO,13/12/2016,8665440,49848.99,FCO SERVICES,Assets Under Construction (Oracle PA Control Account)
FCO,FCO,08/12/2016,8617435,49722,DSTL - DEFENCE SCIENCE & TECHNOLOGY LABORATORY,Programme Spend (Oracle Projects Control Account)
FCO,FCO,20/12/2016,8744566,49695.6,NATIONAL SPACE ACADEMY,Programme Spend (Oracle Projects Control Account)
FCO,FCO,08/12/2016,8618430,49672,HYDROGRAPHIC OFFICE,Programme Spend (Oracle Projects Control Account)
FCO,FCO,21/12/2016,8758791,49641,UNESCO,Programme Spend (Oracle Projects Control Account)
FCO,FCO,07/12/2016,8602469,49500,OECD,Programme Spend (Oracle Projects Control Account)
FCO,FCO,21/12/2016,8761442,49489.06,STABILISATION NETWORK,Programme Spend (Oracle Projects Control Account)
FCO,FCO,20/12/2016,8740434,49216.02,NATIONAL HEALTH DEVELOPMENT RESEARCH CENTER,Programme Spend (Oracle Projects Control Account)
FCO,FCO,14/12/2016,8679440,49185.01,IPE GLOBAL LIMITED,Programme Spend (Oracle Projects Control Account)
FCO,FCO,22/12/2016,8777498,49085,HARDWIRED INC,Programme Spend (Oracle Projects Control Account)
FCO,FCO,06/12/2016,8584599,49042.56,BRITISH EDUCATION INC,Schooling for Children at Post
FCO,FCO,09/12/2016,8625517,48972.25,FCO SERVICES,Energy Saving Measures
FCO,FCO,01/12/2016,8559498,48637.56,NAJMI SONS AND BROTHERS LTD,Fuel Oil Residential
FCO,FCO,21/12/2016,8762518,48609.97,COMPUTACENTER UK LTD,Assets Under Construction (Oracle PA Control Account)
FCO,FCO,01/12/2016,8568442,48526.53,OSCE ORG SECURITY COOPORATION EUROPE,Programme Spend (Oracle Projects Control Account)
FCO,FCO,07/12/2016,8599447,48313.25,COMPUTACENTER UK LTD,Information Systems Implementation
FCO,FCO,08/12/2016,8618439,48146,HYDROGRAPHIC OFFICE,Programme Spend (Oracle Projects Control Account)
FCO,FCO,12/12/2016,8650438,48117.26,ISS FACILITY SERVICES LTD FCO OP,Multiple Accounts
FCO,FCO,20/12/2016,8742626,48107,BSI STANDARDS INSTITUTION & TRAINING,Programme Spend (Oracle Projects Control Account)
FCO,FCO,19/12/2016,8722957,48102.58,SANLAM PROVIDENT FUND,Multiple Accounts
FCO,FCO,29/12/2016,8798517,48055.8,BAE SYSTEMS APPLIED INTELLIGENCE LIMITED,Multiple Accounts
FCO,FCO,08/12/2016,8607641,47973.14,BUR CASHBOX TOP UP,Interbank Transfers/Withdrawals
FCO,FCO,16/12/2016,8709632,47965.36,GF FUTURES CO LTD,Programme Spend (Oracle Projects Control Account)
FCO,FCO,21/12/2016,8764457,47883.22,FCO SERVICES,Assets Under Construction (Oracle PA Control Account)
FCO,FCO,21/12/2016,8758827,47776.71,RICARDO AEA LTD,Programme Spend (Oracle Projects Control Account)
FCO,FCO,22/12/2016,8775446,47707.94,TNT EXPRESS,Specialist Contractors
FCO,FCO,02/12/2016,8574545,47631.67,INTEGRITY RESEARCH AND CONSULTANCY LTD,Programme Spend (Oracle Projects Control Account)
FCO,FCO,09/12/2016,8626441,47574.87,MARBLE FURNISHING LIMITED,"Purchase of Furniture, Fittings and Domestic Appliances"
FCO,FCO,15/12/2016,8695502,47470,INTERNATIONAL GOVERNANCE AND RISK LIMITED GOVRISK,Programme Spend (Oracle Projects Control Account)
FCO,FCO,16/12/2016,8717502,47464,CLIMATE PARLIAMENT,Programme Spend (Oracle Projects Control Account)
FCO,FCO,16/12/2016,8712229,47357.55,INTERSERVE FM LTD,Construction Project more than 10k
FCO,FCO,20/12/2016,8742483,47102.52,PRICEWATERHOUSE COOPERS LLP,Programme Spend (Oracle Projects Control Account)
FCO,FCO,22/12/2016,8774590,46958.24,MAKARIM AND TAIRA S,Costs Associated with the Disposal of Capitalised Assets
FCO,FCO,20/12/2016,8742433,46848,VIVID ECONOMICS LTD,Programme Spend (Oracle Projects Control Account)
FCO,FCO,21/12/2016,8764441,46829.19,TORCHLIGHT SOLUTIONS LTD,Programme Spend (Oracle Projects Control Account)
FCO,FCO,28/12/2016,8788477,46827,NOTTINGHAM CITY COUNCIL,Programme Spend (Oracle Projects Control Account)
FCO,FCO,30/12/2016,8803516,46796.83,FCO SERVICES,Air Freight Dip Bags - Freight & Clearance Charges
FCO,FCO,19/12/2016,8722962,46753.99,SOUTH REVENUE SERVICE,Multiple Accounts
FCO,FCO,07/12/2016,8599455,46737,COMPUTACENTER UK LTD,IT/IS Consultancy
FCO,FCO,09/12/2016,8624761,46716,OPEN UNIVERSITY WORLDWIDE,Programme Spend (Oracle Projects Control Account)
FCO,FCO,23/12/2016,8783479,46525.26,COLLIERS INTERNATIONAL,Multiple Accounts
FCO,FCO,29/12/2016,8799482,46305,G4S SECURITY SERVICES KENYA LTD,UK Guarding Contracts Overseas
FCO,FCO,20/12/2016,8744526,46117.02,RAPPLER INC,Programme Spend (Oracle Projects Control Account)
FCO,FCO,15/12/2016,8705548,45870.08,BRR LE STAFF PAY,Multiple Accounts
FCO,FCO,13/12/2016,8660820,45656.85,SISTERS FOR CHANGE,Programme Spend (Oracle Projects Control Account)
FCO,FCO,08/12/2016,8627565,45650,FRP OTHER DEBTORS,Programme Spend (Oracle Projects Control Account)
FCO,FCO,16/12/2016,8712331,45572.25,ISS FACILITY SERVICES LTD FCO OP - POE,Multiple Accounts
FCO,FCO,05/12/2016,8579981,45531.51,ECORYS GROUP UK,Programme Spend (Oracle Projects Control Account)
FCO,FCO,15/12/2016,8695648,45525,ATKINS LTD,Programme Spend (Oracle Projects Control Account)
FCO,FCO,15/12/2016,8695616,45470.24,CASE MATRIX NETWORK,Programme Spend (Oracle Projects Control Account)
FCO,FCO,12/12/2016,8644691,45447.45,FUNDACION ACCION CONTRA EL HAMBRE,Programme Spend (Oracle Projects Control Account)
FCO,FCO,12/12/2016,8644692,45437.1,AKTIS STRATEGY,Programme Spend (Oracle Projects Control Account)
FCO,FCO,21/12/2016,8760485,45350.12,FCO SERVICES,Security: Works Non-Residential
FCO,FCO,07/12/2016,8599575,45340,KOIZA INTERNATIONAL LTD,"Purchase of Furniture, Fittings and Domestic Appliances"
FCO,FCO,01/12/2016,8218648,44927.99,QATAR CORAL FOR REAL ESTATE DEVELOPMENT LLC,Multiple Accounts
FCO,FCO,29/12/2016,8800544,44857.03,COMPUTACENTER UK LTD,Assets Under Construction (Oracle PA Control Account)
FCO,FCO,22/12/2016,8773514,44696,NATURAL RESOURCES DEFENSE COUNCIL,Programme Spend (Oracle Projects Control Account)
FCO,FCO,07/12/2016,8599471,44691.25,GOVERNMENT OF BELIZE,Programme Spend (Oracle Projects Control Account)
FCO,FCO,20/12/2016,8746481,44691.25,GOVERNMENT OF BELIZE,Programme Spend (Oracle Projects Control Account)
FCO,FCO,13/12/2016,8664444,44689.5,BRIGHT HORIZONS FAMILY SOLUTION LTD,FCO KCS Nursery
FCO,FCO,21/12/2016,8762486,44663.99,BRITCHAM BUSINESS SERVICES,Miscellaneous Expenditure: inc subscriptions and equipment maintenance
FCO,FCO,16/12/2016,8718480,44650,ARUP LIMITED,Programme Spend (Oracle Projects Control Account)
FCO,FCO,12/12/2016,8643425,44647.95,FUTURE CITIES CATAPULT,Programme Spend (Oracle Projects Control Account)
FCO,FCO,19/12/2016,8722936,44566.94,IRAQ ELECTRICITY BOARD,Electricity Non-Residential
FCO,FCO,08/12/2016,8607721,44333.98,NATIONAL DEBT ASSOCIATION OF CHINA,Programme Spend (Oracle Projects Control Account)
FCO,FCO,16/12/2016,8712286,44294.75,INTERSERVE FM LTD,Construction Project more than 10k
FCO,FCO,15/12/2016,8695698,44100,TRUCOST PLC,Programme Spend (Oracle Projects Control Account)
FCO,FCO,13/12/2016,8664461,43997,INTERNATIONAL ENERGY AGENCY,Programme Spend (Oracle Projects Control Account)
FCO,FCO,20/12/2016,8742617,43995,BSI STANDARDS INSTITUTION & TRAINING,Programme Spend (Oracle Projects Control Account)
FCO,FCO,23/12/2016,8784520,43815.71,ENI GAS AND POWER NV SA,Multiple Accounts
FCO,FCO,08/12/2016,8617441,43763.09,HYDROGRAPHIC OFFICE,Programme Spend (Oracle Projects Control Account)
FCO,FCO,29/12/2016,8799468,43409,OVE ARUP PARTNERS INTERNATIONAL LTD,Programme Spend (Oracle Projects Control Account)
FCO,FCO,09/12/2016,8629431,43403.17,OVERSEAS SUPPLY SERVICES LTD,UK Guarding Contracts Overseas
FCO,FCO,19/12/2016,8736477,43390.09,CIUDADANOS POR UNA CAUSA EN COMUN,Programme Spend (Oracle Projects Control Account)
FCO,FCO,05/12/2016,8580069,43364.4,GLOBAL PARTNERS GOVERNANCE PRACTICE LTD,Programme Spend (Oracle Projects Control Account)
FCO,FCO,28/12/2016,8794470,43351.39,COMPUTACENTER UK LTD,Assets Under Construction (Oracle PA Control Account)
FCO,FCO,08/12/2016,8617439,43194,OECD,Programme Spend (Oracle Projects Control Account)
FCO,FCO,12/12/2016,8639583,43121.02,SNF LE STAFF PAY,Multiple Accounts
FCO,FCO,12/12/2016,8645477,43067.14,CAUSEWAY INSTITUTE FOR PEACE BUILDING AND CONFLICT RESOLUTION,Programme Spend (Oracle Projects Control Account)
FCO,FCO,21/12/2016,8764453,43030.5,FCO SERVICES,Assets Under Construction (Oracle PA Control Account)
FCO,FCO,29/12/2016,8796430,42895.98,NAJMI SONS AND BROTHERS LTD,Fuel Oil Residential
FCO,FCO,15/12/2016,8697447,42510,IOM INTERNATIONAL ORG FOR MIGRATION,Programme Spend (Oracle Projects Control Account)
FCO,FCO,28/12/2016,8788464,42485,INTER MEDIATE,Programme Spend (Oracle Projects Control Account)
FCO,FCO,20/12/2016,8740538,42460.47,PRICEWATERHOUSECOOPERS MANAGEMENT CONSULTING (SHANGHAI) LIMITED BEIJING BRANCH,Programme Spend (Oracle Projects Control Account)
FCO,FCO,22/12/2016,8772612,42416,IREX,Programme Spend (Oracle Projects Control Account)
FCO,FCO,09/12/2016,8624498,42376.27,NORWEGIAN CHURCH AID,Programme Spend (Oracle Projects Control Account)
FCO,FCO,14/12/2016,8677372,42228.38,VIET CHAMBER COMMERCE AND INDUSTRY,Programme Spend (Oracle Projects Control Account)
FCO,FCO,13/12/2016,8661499,42133.92,SBB LE STAFF PAY,Multiple Accounts
FCO,FCO,07/12/2016,8599535,42126.2,BUNDESVERMOEGENSAMT,Multiple Accounts
FCO,FCO,16/12/2016,8717490,41845.84,SSK,Multiple Accounts
FCO,FCO,22/12/2016,8772698,41770.45,SOCIAL SECURITY CONTRIBTN AUTHORITY,Multiple Accounts
FCO,FCO,15/12/2016,8692485,41742.06,INTERNATIONAL GRAINS COUNCIL,Protocol - General VAT Refunds to Other Organisations
FCO,FCO,09/12/2016,8629477,41718.46,BAE SYSTEMS APPLIED INTELLIGENCE LIMITED,Specialist Contractors
FCO,FCO,15/12/2016,8697600,41574.1,SECURITY SERVICES GROUP,Misc Security Payments
FCO,FCO,12/12/2016,8650478,41549.76,ISS FACILITY SERVICES LTD FCO OP,Multiple Accounts
FCO,FCO,16/12/2016,8712325,41465.08,ISS FACILITY SERVICES LTD FCO OP - POE,Multiple Accounts
FCO,FCO,21/12/2016,8760459,41391.14,FCO SERVICES,Assets Under Construction (Oracle PA Control Account)
FCO,FCO,19/12/2016,8735441,41158.63,QUE FUNCIONA PARA EL DESARROLLO AC,Programme Spend (Oracle Projects Control Account)
FCO,FCO,23/12/2016,8784426,41058.32,UCL CONSULTANTS LIMITED,Programme Spend (Oracle Projects Control Account)
FCO,FCO,20/12/2016,8744532,41010,CRANFIELD UNIVERSITY,Programme Spend (Oracle Projects Control Account)
FCO,FCO,29/12/2016,8802448,40832,COMPUTACENTER UK LTD,Specialist Contractors
FCO,FCO,02/12/2016,8574605,40830,BAE SYSTEMS APPLIED INTELLIGENCE LIMITED,Information Systems Implementation
FCO,FCO,29/12/2016,8799493,40801.59,COMPUTACENTER UK LTD,Assets Under Construction (Oracle PA Control Account)
FCO,FCO,21/12/2016,8761512,40751.71,CONFLICT ARMAMENT RESEARCH,Programme Spend (Oracle Projects Control Account)
FCO,FCO,28/12/2016,8787627,40740,NOMURA RESEARCH INSTITUTE,Programme Spend (Oracle Projects Control Account)
FCO,FCO,08/12/2016,8610486,40684,IIZUKA,Information Systems Maintenance
FCO,FCO,23/12/2016,8783520,40684,IIZUKA,Information Systems Maintenance
FCO,FCO,28/12/2016,8787513,40629.1,GULF MASTER INTERNATIONAL,Assets Under Construction (Oracle PA Control Account)
FCO,FCO,16/12/2016,8717517,40624.12,PRODUCERS ALLIANCE FOR CINEMA + TELEVISION LTD PACT,Programme Spend (Oracle Projects Control Account)
FCO,FCO,08/12/2016,8618442,40566,HYDROGRAPHIC OFFICE,Programme Spend (Oracle Projects Control Account)
FCO,FCO,21/12/2016,8760495,40486.65,FCO SERVICES,Specialist Contractors
FCO,FCO,20/12/2016,8756466,40362.67,INSTITUTO ABRADEE DA ENERGIA,Programme Spend (Oracle Projects Control Account)
FCO,FCO,28/12/2016,8788542,40148.35,RICARDO AEA LTD,Programme Spend (Oracle Projects Control Account)
FCO,FCO,20/12/2016,8750795,40134,COMPUTACENTER UK LTD,IT/IS Consultancy
FCO,FCO,12/12/2016,8636664,40117.35,AETNA,Multiple Accounts
FCO,FCO,20/12/2016,8756763,40000,UNITED NATIONS,Programme Spend (Oracle Projects Control Account)
FCO,FCO,12/12/2016,8650435,39962.21,ISS FACILITY SERVICES LTD FCO OP,Multiple Accounts
FCO,FCO,09/12/2016,8624495,39841.69,NAJMI SONS AND BROTHERS LTD,Fuel Oil Residential
FCO,FCO,28/12/2016,8788483,39806.41,ADAM SMITH INTERNATIONAL,Programme Spend (Oracle Projects Control Account)
FCO,FCO,09/12/2016,8623526,39677.78,NEW ERA OIL AND GAS,Fuel Oil Residential
FCO,FCO,21/12/2016,8758427,39648.57,"NATIONAL CENTER FOR SCHOOLING DEVELOPMENT PROGRAMME, MINISTRY OF EDUCATION",Programme Spend (Oracle Projects Control Account)
FCO,FCO,19/12/2016,8722724,39600.41,BANKING AND FINANCIAL INST DEPRTMT,Programme Spend (Oracle Projects Control Account)
FCO,FCO,21/12/2016,8759517,39577.98,METROPOLITAN POLICE AUTHORITY,Programme Spend (Oracle Projects Control Account)
FCO,FCO,19/12/2016,8723473,39485.44,HOLDING IMMOBILIARE PALLAVICINI SPA,Rental Payments - residential
FCO,FCO,20/12/2016,8756472,39343.91,COMPUTACENTER UK LTD,Assets Under Construction (Oracle PA Control Account)
FCO,FCO,07/12/2016,8599546,39296.04,KOLEKTIV DOO,Programme Spend (Oracle Projects Control Account)
FCO,FCO,28/12/2016,8794545,39274.85,THE ROYAL BANK OF SCOTLAND,Multiple Accounts
FCO,FCO,20/12/2016,8740551,39222.66,BRIGHT TREE FUTURE SCHOOL EDUCATION,Programme Spend (Oracle Projects Control Account)
FCO,FCO,22/12/2016,8771495,39215.64,NAJMI SONS AND BROTHERS LTD,Fuel Oil Residential
FCO,FCO,19/12/2016,8722464,39120.49,COLUMBUS TRAVELS AND TOURS LTD,Post - Air Travel
FCO,FCO,22/12/2016,8778431,39034,CITY OF WESTMINSTER,Rates Taxes Non-Residential
FCO,FCO,05/12/2016,8580353,38931,GENDER PERSPECTIVES,Programme Spend (Oracle Projects Control Account)
FCO,FCO,16/12/2016,8709467,38899.71,CENTER OF HUBEI COOPERATIVE INNOVATION FOR EMISSIONS TRADING SYSTEM,Programme Spend (Oracle Projects Control Account)
FCO,FCO,06/12/2016,8586545,38889.3,IOM INTERNATIONAL ORG FOR MIGRATION,Programme Spend (Oracle Projects Control Account)
FCO,FCO,08/12/2016,8618445,38838.81,FCO SERVICES,Assets Under Construction (Oracle PA Control Account)
FCO,FCO,07/12/2016,8596605,38832.52,LA PLATINE,Recharge Suspense Account (Oracle PA Control Account)
FCO,FCO,07/12/2016,8597581,38816.74,CARBON TRUST ADVISORY LTD,Programme Spend (Oracle Projects Control Account)
FCO,FCO,22/12/2016,8777478,38807.22,HEALIX INTERNATIONAL LTD,Hospital/Specialist Treatment
FCO,FCO,08/12/2016,8617440,38805,HYDROGRAPHIC OFFICE,Programme Spend (Oracle Projects Control Account)
FCO,FCO,05/12/2016,8580112,38602.8,MABEY BRIDGE LTD,Programme Spend (Oracle Projects Control Account)
FCO,FCO,06/12/2016,8590441,38600.61,THE ROYAL BANK OF SCOTLAND,Multiple Accounts
FCO,FCO,08/12/2016,8618456,38596.7,DX NETWORK SERVICES,Postal Services
FCO,FCO,21/12/2016,8762480,38580.3,AMEC FOSTER WHEELER INTERNATIONAL INGENIERIA Y CONSTRUCCION  LTDA,Programme Spend (Oracle Projects Control Account)
FCO,FCO,16/12/2016,8709810,38427,SEARCH FOR COMMON GROUND,Programme Spend (Oracle Projects Control Account)
FCO,FCO,16/12/2016,8717536,38380.57,RICARDO AEA LTD,Programme Spend (Oracle Projects Control Account)
FCO,FCO,09/12/2016,8628571,38320,OXO,Programme Spend (Oracle Projects Control Account)
FCO,FCO,14/12/2016,8679457,38295.97,MERCER HUMAN RESOURCE CONSULTING LTD,Local Staff Pension Contributions
FCO,FCO,16/12/2016,8712318,38292.87,ISS FACILITY SERVICES LTD FCO OP - POE,Multiple Accounts
FCO,FCO,16/12/2016,8709786,38203.67,CHONGQING UNIVERSITY,Programme Spend (Oracle Projects Control Account)
FCO,FCO,12/12/2016,8650484,38146.24,ISS FACILITY SERVICES LTD FCO OP,Multiple Accounts
FCO,FCO,20/12/2016,8756488,38007.84,PLATAFORMA INTEGRAL DE DESARROLLO SUSTE,Programme Spend (Oracle Projects Control Account)
FCO,FCO,20/12/2016,8742510,37987.63,CLIMATE BONDS INITIATIVE,Programme Spend (Oracle Projects Control Account)
FCO,FCO,19/12/2016,8722934,37949.12,IRAQ ELECTRICITY BOARD,Electricity Non-Residential
FCO,FCO,12/12/2016,8650444,37930.41,ISS FACILITY SERVICES LTD FCO OP,Multiple Accounts
FCO,FCO,20/12/2016,8744486,37919.23,UNIVERSITY OF EAST ANGLIA,Programme Spend (Oracle Projects Control Account)
FCO,FCO,16/12/2016,8712220,37898.27,INTERSERVE FM LTD,Construction Project more than 10k
FCO,FCO,23/12/2016,8783445,37814.95,BRICKELL BAY TOWER LTD,Multiple Accounts
FCO,FCO,01/12/2016,8563484,37738.87,G4S SECURITY SERVICE DRC SPRL,Local Guards
FCO,FCO,01/12/2016,8564515,37738.87,G4S SECURITY SERVICE DRC SPRL,Local Guards
FCO,FCO,05/12/2016,8579930,37738.87,G4S SECURITY SERVICE DRC SPRL,Local Guards
FCO,FCO,21/12/2016,8764451,37689,FCO SERVICES,Assets Under Construction (Oracle PA Control Account)
FCO,FCO,21/12/2016,8761506,37673.14,COMPUTACENTER UK LTD,Assets Under Construction (Oracle PA Control Account)
FCO,FCO,14/12/2016,8687650,37593.28,EUROPEAN SPACE AGENCY,Protocol - General VAT Refunds to Other Organisations
FCO,FCO,21/12/2016,8762475,37539.17,TURNER AND TOWNSEND PROPERTY SERVICES,Assets Under Construction (Oracle PA Control Account)
FCO,FCO,28/12/2016,8794554,37257.35,DIPLOMATIC MISSION SUPPLIES LTD,"Purchase of Furniture, Fittings and Domestic Appliances"
FCO,FCO,02/12/2016,8575590,37158.07,TOYOTA JAMAICA LTD,Recharge Suspense Account (Oracle PA Control Account)
FCO,FCO,22/12/2016,8772618,37146.77,IDEAS BERHAD,Programme Spend (Oracle Projects Control Account)
FCO,FCO,12/12/2016,8634792,37087,CAPTAIN ANDY'S FISHING SUPPLY LTD,Recharge Suspense Account (Oracle PA Control Account)
FCO,FCO,05/12/2016,8579900,36994.29,ATKINS LTD,Programme Spend (Oracle Projects Control Account)
FCO,FCO,16/12/2016,8714476,36949.17,CENTRE FOR ASIA PACIFIC AVIATION PRIVATE LIMITED,Exhibitions
FCO,FCO,07/12/2016,8599528,36892.87,SECURITAS SAC,Local Guards
FCO,FCO,29/12/2016,8800737,36846.33,ETHICAL TRADING INITIATIVE,Programme Spend (Oracle Projects Control Account)
FCO,FCO,22/12/2016,8778438,36810.13,WRI BRASIL,Programme Spend (Oracle Projects Control Account)
FCO,FCO,16/12/2016,8712320,36748.32,ISS FACILITY SERVICES LTD FCO OP - POE,Multiple Accounts
FCO,FCO,20/12/2016,8756431,36708.19,IBLF,Programme Spend (Oracle Projects Control Account)
FCO,FCO,30/12/2016,8803538,36700.28,FCO SERVICES,Assets Under Construction (Oracle PA Control Account)
FCO,FCO,09/12/2016,8624768,36616.58,COLLEGE OF POLICING,Recharge Suspense Account (Oracle PA Control Account)
FCO,FCO,28/12/2016,8794488,36583.68,BAE SYSTEMS APPLIED INTELLIGENCE LIMITED,Specialist Contractors
FCO,FCO,22/12/2016,8772659,36492.7,FOUNTAINHEAD ENTERTAINMENT PVT LTD,Programme Spend (Oracle Projects Control Account)
FCO,FCO,16/12/2016,8715571,36467.03,INSTITUTO DE GESTAO FINANCEIRA DA SEGURANCA SOCIAL,Multiple Accounts
FCO,FCO,13/12/2016,8660563,36463.02,ARTICLE 19,Programme Spend (Oracle Projects Control Account)
FCO,FCO,14/12/2016,8679447,36463.02,ARTICLE 19,Programme Spend (Oracle Projects Control Account)
FCO,FCO,01/12/2016,8557437,36451.58,INSTITUTO ETHOS DE EMPRESAS E RESPONSABILIDADE SOCIAL,Programme Spend (Oracle Projects Control Account)
FCO,FCO,12/12/2016,8634443,36437.41,ZY CROWDFUNDING INDUSTRIAL PARK (GUIYANG),Programme Spend (Oracle Projects Control Account)
FCO,FCO,19/12/2016,8729465,36432.5,COLLEGE OF POLICING,Recharge Suspense Account (Oracle PA Control Account)
FCO,FCO,19/12/2016,8728470,36343.06,WIENER GEBIETSKRANKENKASSE,Multiple Accounts
FCO,FCO,22/12/2016,8772584,36319.91,UNDP,Programme Spend (Oracle Projects Control Account)
FCO,FCO,16/12/2016,8712317,36307.63,ISS FACILITY SERVICES LTD FCO OP - POE,Multiple Accounts
FCO,FCO,22/12/2016,8777510,36278,THE ASIA FOUNDATION,Programme Spend (Oracle Projects Control Account)
FCO,FCO,09/12/2016,8628538,36227.92,NGO MOST,Programme Spend (Oracle Projects Control Account)
FCO,FCO,15/12/2016,8705440,36207,AXIOM INTERNATIONAL LTD,Programme Spend (Oracle Projects Control Account)
FCO,FCO,28/12/2016,8793474,36186.58,DIPSERVICE,Rental Payments - non residential
FCO,FCO,19/12/2016,8722877,36158.67,IBTC PENSION MANAGERS LTD,Multiple Accounts
FCO,FCO,19/12/2016,8722705,36100.91,ZML LE STAFF PAY,Multiple Accounts
FCO,FCO,20/12/2016,8756518,36082,UNITED NATIONS,Programme Spend (Oracle Projects Control Account)
FCO,FCO,19/12/2016,8722945,36047.43,IRAQ ELECTRICITY BOARD,Electricity Non-Residential
FCO,FCO,16/12/2016,8712240,36034.07,INTERSERVE FM LTD,Construction Project more than 10k
FCO,FCO,14/12/2016,8687469,35978.7,SAHAN FOUNDATION LTD,Programme Spend (Oracle Projects Control Account)
FCO,FCO,21/12/2016,8758426,35959.18,PRICEWATERHOUSECOOPERS MANAGEMENT CONSULTING (SHANGHAI) LIMITED BEIJING BRANCH,Programme Spend (Oracle Projects Control Account)
FCO,FCO,12/12/2016,8644515,35863.5,UNIVERSITY OF NOTTINGHAM,Programme Spend (Oracle Projects Control Account)
FCO,FCO,19/12/2016,8723461,35645,AXIOM INTERNATIONAL LTD,Programme Spend (Oracle Projects Control Account)
FCO,FCO,12/12/2016,8646587,35621.25,SECURITY SERVICES GROUP,Misc Security Payments
FCO,FCO,19/12/2016,8722499,35612.67,ZHENGJIE MANAGEMENT CONSULTING COMPANY LTD,Programme Spend (Oracle Projects Control Account)
FCO,FCO,05/12/2016,8579931,35580.08,PNP IMPREST,Interbank Transfers/Withdrawals
FCO,FCO,21/12/2016,8762435,35563.49,UNIVERSIDAD DE CHILE,Programme Spend (Oracle Projects Control Account)
FCO,FCO,22/12/2016,8772569,35481.16,IESCO,Multiple Accounts
FCO,FCO,06/12/2016,8586494,35459.98,KPMG FAS CO LTD,Programme Spend (Oracle Projects Control Account)
FCO,FCO,13/12/2016,8660635,35430.12,CENTER FOR REGULATORY RESEARCH,Programme Spend (Oracle Projects Control Account)
FCO,FCO,08/12/2016,8609506,35418.21,INDEPENDENT DIPLOMATS,Programme Spend (Oracle Projects Control Account)
FCO,FCO,05/12/2016,8579574,35318.1,ANHUI MEDICAL UNIVERSITY,Programme Spend (Oracle Projects Control Account)
FCO,FCO,30/12/2016,8803537,35260.25,PNP IMPREST,Interbank Transfers/Withdrawals
FCO,FCO,19/12/2016,8722765,35232.9,CENTER OF DEVELOPMENT AND DEMOCRACY,Programme Spend (Oracle Projects Control Account)
FCO,FCO,30/12/2016,8803567,35121.28,FCO SERVICES,Assets Under Construction (Oracle PA Control Account)
FCO,FCO,01/12/2016,8353477,35094.64,CHINA-BRITAIN BUSINESS COUNCIL,O'Seas Conferences
FCO,FCO,14/12/2016,8684449,35021,BAE SYSTEMS APPLIED INTELLIGENCE LIMITED,Information Systems Implementation
FCO,FCO,19/12/2016,8726457,35000,THE DEATH PENALTY PROJECT LIMTED,Human Rights : Prisoners
FCO,FCO,15/12/2016,8692432,34999.52,INSTITUTE OF ROCK AND SOIL MECHANICS CHINESE ACADEMY OF SCIENCES,Programme Spend (Oracle Projects Control Account)
FCO,FCO,21/12/2016,8758568,34967.32,"SUN YAT-SEN (ZHONGSHAN) UNIVERSITY, GUANGZHOU",Programme Spend (Oracle Projects Control Account)
FCO,FCO,23/12/2016,8783456,34949.64,ONE SANSOME PROPERTY LLC,Multiple Accounts
FCO,FCO,05/12/2016,8579575,34939.17,CARBON TRUST BEIJING CONSULTING LIMITED,Programme Spend (Oracle Projects Control Account)
FCO,FCO,21/12/2016,8759439,34872.39,CORD GLOBAL,Programme Spend (Oracle Projects Control Account)
FCO,FCO,06/12/2016,8584461,34806.42,CHP CASHBOX TOP UP,Interbank Transfers/Withdrawals
FCO,FCO,13/12/2016,8665451,34734.04,FCO SERVICES,Technical Supplies (Maint)
FCO,FCO,30/12/2016,8803662,34727.26,FCO SERVICES,Assets Under Construction (Oracle PA Control Account)
FCO,FCO,23/12/2016,8783441,34709.94,BEEKMAN REGENT CONDO ASSO,Multiple Accounts
FCO,FCO,20/12/2016,8742456,34558.28,UNIVERSITY COLLEGE LONDON,Programme Spend (Oracle Projects Control Account)
FCO,FCO,06/12/2016,8586795,34540.66,PEXI INC,Assets Under Construction (Oracle PA Control Account)
FCO,FCO,20/12/2016,8739496,34414.47,CENTRAL PROVIDENT FUND BOARD,Multiple Accounts
FCO,FCO,14/12/2016,8684432,34408.38,AKTIS STRATEGY,Programme Spend (Oracle Projects Control Account)
FCO,FCO,30/12/2016,8803649,34370.8,FCO SERVICES,Air Freight Dip Bags - Freight & Clearance Charges
FCO,FCO,16/12/2016,8718488,34334.2,DANISH REFUGEE COUNCIL,Programme Spend (Oracle Projects Control Account)
FCO,FCO,13/12/2016,8659446,34288.78,CHAI KHANA,Programme Spend (Oracle Projects Control Account)
FCO,FCO,09/12/2016,8625459,34280.8,FUNDACION SOSTENIBILIDAD Y EQUIDAD,Programme Spend (Oracle Projects Control Account)
FCO,FCO,20/12/2016,8740537,34278.67,DATACOM EMPLOYER SERVICES,Multiple Accounts
FCO,FCO,01/12/2016,8562529,34190,FCO SERVICES,Assets Under Construction (Oracle PA Control Account)
FCO,FCO,12/12/2016,8650442,33979.73,ISS FACILITY SERVICES LTD FCO OP,Multiple Accounts
FCO,FCO,13/12/2016,8660042,33968.98,NAJMI SONS AND BROTHERS LTD,Fuel Oil Residential
FCO,FCO,15/12/2016,8695617,33810,ATKINS LTD,Programme Spend (Oracle Projects Control Account)
FCO,FCO,28/12/2016,8794484,33800,REPRIEVE,Programme Spend (Oracle Projects Control Account)
FCO,FCO,22/12/2016,8771443,33757.03,ISRAEL RATHAUS,Recharge Suspense Account (Oracle PA Control Account)
FCO,FCO,16/12/2016,8712128,33752.1,MOTT MACDONALD,Programme Spend (Oracle Projects Control Account)
FCO,FCO,21/12/2016,8759442,33721.91,PICKFORDS MOVE MANAGEMENT LTD,Unaccompanied Air Freight
FCO,FCO,16/12/2016,8712226,33698.05,INTERSERVE FM LTD,FM Interserve Building Fabric Maintenance
FCO,FCO,21/12/2016,8764450,33581.32,FCO SERVICES,Assets Under Construction (Oracle PA Control Account)
FCO,FCO,22/12/2016,8771517,33581.19,A KATEMBWE,Rental Payments - residential
FCO,FCO,20/12/2016,8742592,33500,PROMPT UK LTD,Programme Spend (Oracle Projects Control Account)
FCO,FCO,22/12/2016,8775447,33470.97,UNIVERSITY OF EXETER,Programme Spend (Oracle Projects Control Account)
FCO,FCO,16/12/2016,8712182,33350,BEHAVIOURAL INSIGHTS TEAM,Programme Spend (Oracle Projects Control Account)
FCO,FCO,28/12/2016,8794505,33288.84,BRITSOURCE INTERNATIONAL,Property Maintenance Overseas Residential
FCO,FCO,13/12/2016,8670425,33262.84,FUNDACAO CHRISTIANO OTTONI,Programme Spend (Oracle Projects Control Account)
FCO,FCO,07/12/2016,8599502,33221.45,PICKFORDS MOVE MANAGEMENT LTD,Heavy Baggage
FCO,FCO,28/12/2016,8788530,33182.58,CHINA MODERN EDUCATIONAL EQUIPMENT MAGAZINE,Programme Spend (Oracle Projects Control Account)
FCO,FCO,22/12/2016,8774560,33143.22,SHAILENDER SINGH AND JASVINDER KAUR THAKUR,Multiple Accounts
FCO,FCO,23/12/2016,8783569,33023.98,BRITISH CHAMBER OF COMMERCE,Miscellaneous Expenditure: inc subscriptions and equipment maintenance
FCO,FCO,07/12/2016,8598433,32879.67,FCO SERVICES,Property Maintenance Overseas Non Residential
FCO,FCO,22/12/2016,8777549,32866.33,COMPUTACENTER UK LTD,Assets Under Construction (Oracle PA Control Account)
FCO,FCO,07/12/2016,8597604,32856.28,ARB LE STAFF PAY,Multiple Accounts
FCO,FCO,16/12/2016,8712315,32824,INTERSERVE FM LTD,Multiple Accounts
FCO,FCO,20/12/2016,8740539,32813.17,MOTT MACDONALD,Programme Spend (Oracle Projects Control Account)
FCO,FCO,16/12/2016,8715565,32737.26,SSK,Multiple Accounts
FCO,FCO,13/12/2016,8664427,32639.67,DIALOGUE ADVISORY GROUP,Programme Spend (Oracle Projects Control Account)
FCO,FCO,21/12/2016,8762485,32558,WORLDREACH SOFTWARE CORPORATION,Information Systems Maintenance
FCO,FCO,29/12/2016,8800581,32474.07,COMPUTACENTER UK LTD,Assets Under Construction (Oracle PA Control Account)
FCO,FCO,20/12/2016,8742477,32404.47,TODD RESEARCH LTD,Estates - Other Machinery and Equipment
FCO,FCO,20/12/2016,8742597,32403,BRITISH FILM INSTITUTE,Programme Spend (Oracle Projects Control Account)
FCO,FCO,21/12/2016,8762455,32361,UNIVERSITY COLLEGE LONDON,Programme Spend (Oracle Projects Control Account)
FCO,FCO,14/12/2016,8676931,32275.88,THE INSTITUTE OF MARKET AND PRICE RESEARCH NATIONAL DEVELOPMENT AND REFORM COMMISSION,Programme Spend (Oracle Projects Control Account)
FCO,FCO,21/12/2016,8760452,32142.73,FCO SERVICES,Assets Under Construction (Oracle PA Control Account)
FCO,FCO,08/12/2016,8607602,32129.71,JAGDISH LAL CHAWLA,Rental Payments - residential
FCO,FCO,14/12/2016,8687551,32051,PEACEFUL CHANGE INITIATIVE,Programme Spend (Oracle Projects Control Account)
FCO,FCO,16/12/2016,8718460,32020,UNIVERSITY OF OXFORD,Programme Spend (Oracle Projects Control Account)
FCO,FCO,02/12/2016,8572438,32006.6,WARREN HENRY AUTO GROUP,Recharge Suspense Account (Oracle PA Control Account)
FCO,FCO,02/12/2016,8576437,31932.7,FCO SERVICES,Construction Project more than 10k
FCO,FCO,15/12/2016,8695625,31920.83,CASE MATRIX NETWORK,Programme Spend (Oracle Projects Control Account)
FCO,FCO,23/12/2016,8784428,31740,FCO SERVICES,Assets Under Construction (Oracle PA Control Account)
FCO,FCO,23/12/2016,8784430,31740,FCO SERVICES,Assets Under Construction (Oracle PA Control Account)
FCO,FCO,16/12/2016,8712230,31701.42,INTERSERVE FM LTD,Construction Project more than 10k
FCO,FCO,14/12/2016,8681449,31689.3,PICKFORDS MOVE MANAGEMENT LTD,Employee Default Expense (restricted use)
FCO,FCO,20/12/2016,8739566,31662.27,Q PARK LIMITED,Rental Payments - residential
FCO,FCO,20/12/2016,8739567,31662.27,Q PARK LIMITED,Rental Payments - residential
FCO,FCO,14/12/2016,8686450,31626,CRTA,Programme Spend (Oracle Projects Control Account)
FCO,FCO,30/12/2016,8803560,31555.39,FCO SERVICES,Air Freight Dip Bags - Freight & Clearance Charges
FCO,FCO,06/12/2016,8584462,31542.5,GUANGDONG CCUS CENTRE,Programme Spend (Oracle Projects Control Account)
FCO,FCO,28/12/2016,8789429,31513.74,TEAM LEYLAND INTERNATIONAL LTD,Recharge Suspense Account (Oracle PA Control Account)
FCO,FCO,13/12/2016,8668578,31483.5,FCO SERVICES,Information Systems Maintenance
FCO,FCO,21/12/2016,8761453,31441.18,KOLEKTIV DOO,Programme Spend (Oracle Projects Control Account)
FCO,FCO,15/12/2016,8697507,31437.59,IBM WORLD TRADE CORPORATION,Miscellaneous Expenditure: inc subscriptions and equipment maintenance
FCO,FCO,22/12/2016,8772620,31254,INTERNATIONAL GOVERNANCE AND RISK LIMITED GOVRISK,Programme Spend (Oracle Projects Control Account)
FCO,FCO,22/12/2016,8773513,31242.43,ERNST AND YOUNG SAS,Programme Spend (Oracle Projects Control Account)
FCO,FCO,16/12/2016,8712225,31213.35,INTERSERVE FM LTD,Construction Project more than 10k
FCO,FCO,21/12/2016,8758573,31170.07,GO GROUP NLE,Programme Spend (Oracle Projects Control Account)
FCO,FCO,19/12/2016,8735434,31169.13,SIF ICAP SA DE CV,Programme Spend (Oracle Projects Control Account)
FCO,FCO,09/12/2016,8629471,31050,CHINA-BRITAIN BUSINESS COUNCIL,Programme Spend (Oracle Projects Control Account)
FCO,FCO,14/12/2016,8687441,30983.33,SEBHATU AND SONS PROPERTY ADMINISTRATION AND SECURITY SERVICE PLC,Local Guards
FCO,FCO,22/12/2016,8777534,30957,COFFEY INTERNATIONAL DEVELOPMENT,Programme Spend (Oracle Projects Control Account)
FCO,FCO,16/12/2016,8717461,30853.41,AETNA,Multiple Accounts
FCO,FCO,12/12/2016,8644521,30778.17,ASSOCIATION OF COLLEGES,Programme Spend (Oracle Projects Control Account)
FCO,FCO,20/12/2016,8742501,30648.35,THE OPEN DATA INSTITUTE,Programme Spend (Oracle Projects Control Account)
FCO,FCO,13/12/2016,8659820,30622.24,FAKHRY TRADE AND CONTRACTS,Repairs And Refurbishment: Works Residential
FCO,FCO,28/12/2016,8794473,30601.19,COMPUTACENTER UK LTD,Assets Under Construction (Oracle PA Control Account)
FCO,FCO,28/12/2016,8794475,30601.19,COMPUTACENTER UK LTD,Assets Under Construction (Oracle PA Control Account)
FCO,FCO,29/12/2016,8799484,30601.19,COMPUTACENTER UK LTD,Assets Under Construction (Oracle PA Control Account)
FCO,FCO,12/12/2016,8644699,30584.02,COMPUTACENTER UK LTD,Assets Under Construction (Oracle PA Control Account)
FCO,FCO,23/12/2016,8784440,30572,DELIVERY ASSOCIATES LIMITED,Programme Spend (Oracle Projects Control Account)
FCO,FCO,16/12/2016,8712290,30531.43,INTERSERVE FM LTD,Multiple Accounts
FCO,FCO,23/12/2016,8783444,30500,BRITISH COUNCIL ALGERIA,Programme Spend (Oracle Projects Control Account)
FCO,FCO,19/12/2016,8726444,30492.68,EXERGY LIMITED,Programme Spend (Oracle Projects Control Account)
FCO,FCO,16/12/2016,8712305,30452.12,INTERSERVE FM LTD,Multiple Accounts
FCO,FCO,20/12/2016,8742442,30319,AXIOM INTERNATIONAL LTD,Programme Spend (Oracle Projects Control Account)
FCO,FCO,12/12/2016,8639581,30317.28,TOWN AND COUNTRY PLANNING ASSOCIATION,Programme Spend (Oracle Projects Control Account)
FCO,FCO,05/12/2016,8579493,30289.24,TAJ HOTELS RESORTS AND PALACES,Multiple Accounts
FCO,FCO,16/12/2016,8716441,30249.82,RAPPLER INC,Programme Spend (Oracle Projects Control Account)
FCO,FCO,01/12/2016,8561465,30197,FCO SERVICES,Repairs And Refurbishment: Works Residential
FCO,FCO,16/12/2016,8712187,30006.66,INTERSERVE FM LTD,Multiple Accounts
FCO,FCO,12/12/2016,8647541,30000,FUJITSU SERVICES LIMITED,IT/IS Consultancy
FCO,FCO,13/12/2016,8660786,30000,INITIATIVE POUR LEADERSHIP COHESIF,Programme Spend (Oracle Projects Control Account)
FCO,FCO,14/12/2016,8687481,30000,CABINET OFFICE,Training Courses
FCO,FCO,22/12/2016,8777493,30000,WILTON PARK EXECUTIVE AGENCY,Programme Spend (Oracle Projects Control Account)
FCO,FCO,29/12/2016,8802430,30000,VODAFONE LTD,Assets Under Construction (Oracle PA Control Account)
FCO,FCO,12/12/2016,8634501,29999.73,CIVIC CONSENT NGO,Programme Spend (Oracle Projects Control Account)
FCO,FCO,12/12/2016,8650475,29851.39,ISS FACILITY SERVICES LTD FCO OP,Multiple Accounts
FCO,FCO,21/12/2016,8758831,29700.03,STRENGTHEN PARTICIPATORY ORGANISATN,Programme Spend (Oracle Projects Control Account)
FCO,FCO,06/12/2016,8586752,29672.95,ADVICE ON INDIVIDUAL RIGHTS IN EUROPE,Programme Spend (Oracle Projects Control Account)
FCO,FCO,15/12/2016,8695677,29624,FROST & SULLIVAN INDIA PVT LTD,Programme Spend (Oracle Projects Control Account)
FCO,FCO,19/12/2016,8722939,29574.09,DISCOVERY MEDICAL AID,Multiple Accounts
FCO,FCO,21/12/2016,8761457,29574,STABILIZATION SUPPORT SERVICES,Programme Spend (Oracle Projects Control Account)
FCO,FCO,13/12/2016,8660559,29531,CHATHAM HOUSE,Programme Spend (Oracle Projects Control Account)
FCO,FCO,08/12/2016,8621558,29497.5,HAYS SPECIALIST RECRUITMENT LTD,Specialist Contractors
FCO,FCO,13/12/2016,8671429,29473.48,OVE ARUP PARTNERS INTERNATIONAL LTD,Programme Spend (Oracle Projects Control Account)
FCO,FCO,14/12/2016,8680481,29422.03,PICKFORDS MOVE MANAGEMENT LTD,Employee Default Expense (restricted use)
FCO,FCO,15/12/2016,8705478,29421.57,ARTICLE 19,Programme Spend (Oracle Projects Control Account)
FCO,FCO,22/12/2016,8777514,29383.26,ORACLE CORPORATION (UK) LTD,Assets Under Construction (Oracle PA Control Account)
FCO,FCO,15/12/2016,8695521,29360.39,BRITISH GEOLOGICAL SURVEY,Programme Spend (Oracle Projects Control Account)
FCO,FCO,08/12/2016,8621559,29298.83,CAMARA COLOMBIANA DE LA INFRAESTRUCTURA,Overseas Marketing
FCO,FCO,15/12/2016,8693432,29228.33,HARIS ENTERPRISES PVT LTD,Local Guards
FCO,FCO,12/12/2016,8634451,29117.76,TEAM 3 LIMITED,Local Guards
FCO,FCO,16/12/2016,8712173,29091.44,CLOUDBREAK ANALYSIS LIMITED,Programme Spend (Oracle Projects Control Account)
FCO,FCO,22/12/2016,8771432,29046.44,BJB LE STAFF PAY,Multiple Accounts
FCO,FCO,16/12/2016,8717552,28943,AQUATERA LTD,Programme Spend (Oracle Projects Control Account)
FCO,FCO,19/12/2016,8722567,28914.13,ASEAN CSR NETWORK LTD,Programme Spend (Oracle Projects Control Account)
FCO,FCO,07/12/2016,8599446,28885.52,BAE SYSTEMS APPLIED INTELLIGENCE LIMITED,Specialist Contractors
FCO,FCO,07/12/2016,8596484,28833.13,MOTT MACDONALD,Programme Spend (Oracle Projects Control Account)
FCO,FCO,05/12/2016,8579984,28783.88,EAST AFRICAN DEVELOPMENT BANK,Rental Payments - residential
FCO,FCO,13/12/2016,8661432,28783.88,IP SAGINDIKOV RUSTEM,Rental Payments - residential
FCO,FCO,13/12/2016,8661460,28783.88,AZHAR IE,Rental Payments - residential
FCO,FCO,19/12/2016,8727431,28744.92,BRITISH COUNCIL SUCURSAL LIMA,Programme Spend (Oracle Projects Control Account)
FCO,FCO,20/12/2016,8742460,28652,ALCAMILABS LIMITED,Programme Spend (Oracle Projects Control Account)
FCO,FCO,16/12/2016,8712314,28635.39,INTERSERVE FM LTD,Multiple Accounts
FCO,FCO,02/12/2016,8575537,28613,CHARITY COMMISSION ENGLAND AND WALES,Programme Spend (Oracle Projects Control Account)
FCO,FCO,22/12/2016,8772574,28520.47,GUNG HO EVENT MANAGEMENT SERVICES PVT LTD,Multiple Accounts
FCO,FCO,20/12/2016,8742497,28504.73,THE OPEN DATA INSTITUTE,Programme Spend (Oracle Projects Control Account)
FCO,FCO,08/12/2016,8621613,28500,ELEPHANTS DONT FORGET,Information Systems Under 3000 (non-capitalised)
FCO,FCO,12/12/2016,8644537,28492,PEACE DIRECT,Programme Spend (Oracle Projects Control Account)
FCO,FCO,16/12/2016,8715457,28447.4,ENGINEERING DIMENSION CONTRACTING,Recharge Suspense Account (Oracle PA Control Account)
FCO,FCO,22/12/2016,8771480,28352.77,G4S SECURITY SERIVICES GHANA LTD,Local Guards
FCO,FCO,01/12/2016,8562477,28241,FCO SERVICES,Assets Under Construction (Oracle PA Control Account)
FCO,FCO,13/12/2016,8657476,28179.04,BEIJING INSURANCE RESEARCH INSTITUTE,Programme Spend (Oracle Projects Control Account)
FCO,FCO,19/12/2016,8722949,28060.4,IRAQ ELECTRICITY BOARD,Electricity Non-Residential
FCO,FCO,01/12/2016,8564548,28054,RSM RISK ASSURANCE SERVICES LLP,Specialist Contractors
FCO,FCO,29/12/2016,8800566,28051.09,COMPUTACENTER UK LTD,Assets Under Construction (Oracle PA Control Account)
FCO,FCO,20/12/2016,8739433,28041.39,ASHRAF UZ ZAMAN,Rental Payments - residential
FCO,FCO,05/12/2016,8580015,28000,ARUP LIMITED,Programme Spend (Oracle Projects Control Account)
FCO,FCO,19/12/2016,8736490,27957.05,AVANCE ANALISIS INVESTIGACION Y ESTUDIOS,Programme Spend (Oracle Projects Control Account)
FCO,FCO,19/12/2016,8725502,27911.85,INTERNATIONAL GOVERNANCE AND RISK LIMITED GOVRISK,Programme Spend (Oracle Projects Control Account)
FCO,FCO,12/12/2016,8645432,27896.37,ITDP MEXICO AC,Programme Spend (Oracle Projects Control Account)
FCO,FCO,21/12/2016,8761496,27882.69,ADAM SMITH INTERNATIONAL,Programme Spend (Oracle Projects Control Account)
FCO,FCO,14/12/2016,8687522,27875.43,INICIATIVA CLIMATICA DE MEXICO AC,Programme Spend (Oracle Projects Control Account)
FCO,FCO,14/12/2016,8679442,27872.4,OVE ARUP PARTNERS INTERNATIONAL LTD,Programme Spend (Oracle Projects Control Account)
FCO,FCO,15/12/2016,8697494,27783.25,DISTINCTHD,Information Systems Maintenance
FCO,FCO,22/12/2016,8775438,27772,THECITYUK,Programme Spend (Oracle Projects Control Account)
FCO,FCO,01/12/2016,8562611,27768.91,PICKFORDS MOVE MANAGEMENT LTD,Personal Car Freight
FCO,FCO,30/12/2016,8803641,27763.44,FCO SERVICES,Air Freight Dip Bags - Freight & Clearance Charges
FCO,FCO,09/12/2016,8627602,27656,DODS PARLIAMENTARY COMMUNICATIONS LTD,Programme Spend (Oracle Projects Control Account)
FCO,FCO,08/12/2016,8607733,27522.87,BRITISH EMBASSY,Interpost Fundings
FCO,FCO,05/12/2016,8580118,27513.58,DIPLOMATIC MISSION SUPPLIES LTD,Recharge Suspense Account (Oracle PA Control Account)
FCO,FCO,16/12/2016,8712327,27389.76,ISS FACILITY SERVICES LTD FCO OP - POE,Multiple Accounts
FCO,FCO,14/12/2016,8687464,27338.1,SHERIDANS INVESTIGATIONS,Programme Spend (Oracle Projects Control Account)
FCO,FCO,15/12/2016,8691645,27321.46,CHINA FOREIGN EXCHANGE TRADE SYSTEM,Programme Spend (Oracle Projects Control Account)
FCO,FCO,22/12/2016,8773468,27268.77,ACCOUNTING SOLUTIONS,Multiple Accounts
FCO,FCO,12/12/2016,8650467,27163.77,ISS FACILITY SERVICES LTD FCO OP,FM Interserve BES Maintenance
FCO,FCO,15/12/2016,8697467,27141.29,NORTHUMBRIA ENERGY LIMITED,Programme Spend (Oracle Projects Control Account)
FCO,FCO,23/12/2016,8784524,27072.99,BAE SYSTEMS APPLIED INTELLIGENCE LIMITED,Specialist Contractors
FCO,FCO,07/12/2016,8602474,27054.04,WESTMINSTER FOUNDATION FOR DEMOCRACY,Programme Spend (Oracle Projects Control Account)
FCO,FCO,21/12/2016,8758503,27001.7,TRANSPARENCY INTERNATIONAL,Programme Spend (Oracle Projects Control Account)
FCO,FCO,16/12/2016,8718442,26985,PRICEWATERHOUSE COOPERS PRIVATE LIMITED,Programme Spend (Oracle Projects Control Account)
FCO,FCO,15/12/2016,8697544,26922.53,COMPUTACENTER UK LTD,IT/IS Consultancy
FCO,FCO,05/12/2016,8580229,26916.05,BAE SYSTEMS APPLIED INTELLIGENCE LIMITED,Specialist Contractors
FCO,FCO,15/12/2016,8700428,26810.32,RIFT VALLEY INSTITUTE,Programme Spend (Oracle Projects Control Account)
FCO,FCO,15/12/2016,8697470,26751.56,PRICEWATERHOUSE COOPERS LLP,Programme Spend (Oracle Projects Control Account)
FCO,FCO,23/12/2016,8783545,26579.04,ADVICE ON INDIVIDUAL RIGHTS IN EUROPE,Programme Spend (Oracle Projects Control Account)
FCO,FCO,15/12/2016,8698438,26570,BRITISH EXPERTISE INTERNATIONAL LIMITED,Programme Spend (Oracle Projects Control Account)
FCO,FCO,01/12/2016,8559581,26539.14,G4S SECURE SOLUTIONS INT JORDAN,Local Guards
FCO,FCO,16/12/2016,8714455,26539.14,G4S SECURE SOLUTIONS INT JORDAN,Local Guards
FCO,FCO,30/12/2016,8803533,26522,FCO SERVICES,Assets Under Construction (Oracle PA Control Account)
FCO,FCO,21/12/2016,8762430,26470.3,UNIVERSIDAD DE CHILE,Programme Spend (Oracle Projects Control Account)
FCO,FCO,12/12/2016,8650441,26466.6,ISS FACILITY SERVICES LTD FCO OP,Multiple Accounts
FCO,FCO,09/12/2016,8624563,26421.68,KUTUBAI MURZABAEV,Rental Payments - non residential
FCO,FCO,21/12/2016,8761594,26366.33,THAMES VALLEY POLICE AUTH INCOME,Programme Spend (Oracle Projects Control Account)
FCO,FCO,29/12/2016,8800549,26361.2,COMPUTACENTER UK LTD,Assets Under Construction (Oracle PA Control Account)
FCO,FCO,13/12/2016,8673426,26358.65,THE ASSOCIATION OF COMMONWEALTH UNIVERSITIES,Payments On Behalf Of Other External Orgns
FCO,FCO,23/12/2016,8784617,26348.39,TAAM PETROLEUM LTD,Fuel Oil Residential
FCO,FCO,22/12/2016,8771510,26321.26,ROSE,Programme Spend (Oracle Projects Control Account)
FCO,FCO,16/12/2016,8712217,26283.76,INTERSERVE FM LTD,Construction Project more than 10k
FCO,FCO,16/12/2016,8717529,26282.65,INTERNATIONAL GOVERNANCE AND RISK LIMITED GOVRISK,Programme Spend (Oracle Projects Control Account)
FCO,FCO,19/12/2016,8722432,26268.66,QIANHAI INSTITUTE FOR INNOVATIVE RESEARCH,Programme Spend (Oracle Projects Control Account)
FCO,FCO,01/12/2016,8564556,26267.17,INTERNATIONAL LAW AND POLICY GROUP,Programme Spend (Oracle Projects Control Account)
FCO,FCO,08/12/2016,8618436,26247,HYDROGRAPHIC OFFICE,Programme Spend (Oracle Projects Control Account)
FCO,FCO,12/12/2016,8644629,26135,NORDIC INTERNATIONAL SUPPORT FOUNDATION,Programme Spend (Oracle Projects Control Account)
FCO,FCO,15/12/2016,8692435,26133.23,SOUTHWEST PETROLEUM UNIVERSITY,Programme Spend (Oracle Projects Control Account)
FCO,FCO,20/12/2016,8742529,26114.2,CARBON TRUST ADVISORY LTD,Programme Spend (Oracle Projects Control Account)
FCO,FCO,19/12/2016,8736479,26092.88,CENTRO DE INVESTIGACION Y DESARROLLO ac,Programme Spend (Oracle Projects Control Account)
FCO,FCO,14/12/2016,8679434,26086.8,AVARN SECURITY OY,Local Guards
FCO,FCO,22/12/2016,8773466,26065.46,SHENZHEN ASSET MANAGEMENT ASSOCIATION,Programme Spend (Oracle Projects Control Account)
FCO,FCO,16/12/2016,8712472,26058.49,MINISTRY OF JUSTICE,Programme Spend (Oracle Projects Control Account)
FCO,FCO,07/12/2016,8597598,26006.25,LANGUAGE SERVICES DIRECT,Language Tuition: Essential
FCO,FCO,07/12/2016,8599485,25993.8,PACE FUELCARE LIMITED,Fuel Oil Non-Residential
FCO,FCO,15/12/2016,8692438,25989.4,DIAMOND GROUP FOR COMMERCIAL AGENCIES,"Language Students: Accomodation, Expenses & Travel"
FCO,FCO,14/12/2016,8687606,25980.14,UNITED NATIONS,Protocol - General VAT Refunds to Other Organisations
FCO,FCO,23/12/2016,8783538,25954.02,OXFAM BRASIL,Programme Spend (Oracle Projects Control Account)
FCO,FCO,19/12/2016,8738472,25948.01,HENK ELSINK,Multiple Accounts
FCO,FCO,20/12/2016,8742513,25871.12,CHINA-BRITAIN BUSINESS COUNCIL,Programme Spend (Oracle Projects Control Account)
FCO,FCO,13/12/2016,8668587,25850.49,BRUSH TRANSFORMER LIMITED,Property Maintenance Overseas Non Residential
FCO,FCO,20/12/2016,8755424,25746.47,BBC MEDIA ACTION,Programme Spend (Oracle Projects Control Account)
FCO,FCO,21/12/2016,8758811,25578.55,NORTEL SECURITY ZAO OP,Local Guards
FCO,FCO,09/12/2016,8623488,25577.94,G4S SECURITY SERVICES,Local Guards
FCO,FCO,16/12/2016,8712310,25572.89,INTERSERVE FM LTD,Multiple Accounts
FCO,FCO,08/12/2016,8610459,25533.96,ROBERT GORDON UNIVERSITY,Programme Spend (Oracle Projects Control Account)
FCO,FCO,14/12/2016,8681432,25521.71,BRITISH COUNCIL,Programme Spend (Oracle Projects Control Account)
FCO,FCO,29/12/2016,8799497,25500.99,COMPUTACENTER UK LTD,Assets Under Construction (Oracle PA Control Account)
FCO,FCO,14/12/2016,8676972,25490.02,BEIJING CATC JIEWANG AUTO,Recharge Suspense Account (Oracle PA Control Account)
FCO,FCO,15/12/2016,8697440,25435,IOM INTERNATIONAL ORG FOR MIGRATION,Programme Spend (Oracle Projects Control Account)
FCO,FCO,22/12/2016,8777518,25335.46,ORACLE CORPORATION (UK) LTD,IT/IS Consultancy
FCO,FCO,28/12/2016,8793621,25319.8,TRIAL,Programme Spend (Oracle Projects Control Account)
FCO,FCO,19/12/2016,8736486,25311.56,OEI,Programme Spend (Oracle Projects Control Account)
FCO,FCO,01/12/2016,8566432,25291.97,COMPUTACENTER UK LTD,Assets Under Construction (Oracle PA Control Account)
FCO,FCO,29/12/2016,8802442,25263.59,BIS DEPT FOR BUSINESS INNOVATION AND SKILLS,Programme Spend (Oracle Projects Control Account)
FCO,FCO,16/12/2016,8714432,25249.21,BRITISH COUNCIL,Programme Spend (Oracle Projects Control Account)
FCO,FCO,16/12/2016,8718454,25200,INTERNATIONAL INSTITUTE FOR SUSTAINABLE DEVELOPMENT-EUROPE (IISD - EUROPE),Programme Spend (Oracle Projects Control Account)
FCO,FCO,28/12/2016,8793537,25194,OVE ARUP PARTNERS INTERNATIONAL LTD,Programme Spend (Oracle Projects Control Account)
FCO,FCO,16/12/2016,8709783,25146.24,CHONGQING INTERNATIONAL INVESTMENT CONSULTATION GROUP CO LTD,Programme Spend (Oracle Projects Control Account)
FCO,FCO,05/12/2016,8579831,25112.34,UMOJA HOUSE JMC,Property Maintenance Overseas Non Residential
FCO,FCO,06/12/2016,8584627,25048.26,NORTEL SECURITY ZAO OP,Local Guards
FCO,FCO,16/12/2016,8710433,25047.43,SAAD TRADING AND CONTRACTING COMPANY,Multiple Accounts
FCO,FCO,21/12/2016,8760443,25038.25,FCO SERVICES,Postal Services
FCO,FCO,01/12/2016,8559707,25032.57,CHINA MERCHANTS BANK,Post - Air Travel
FCO,FCO,20/12/2016,8739493,25005.21,ADV SHAHAR RONEN AND ADV TAL RONEN,Rental Payments - residential
FCO,FCO,07/12/2016,8595500,-30320.01,SKS OTHER DEBTORS,Sponsorship (Income and Expenditure)
FCO,FCO,09/12/2016,8628517,-30608.97,SURREY POLICE AUTHORITY,Programme Spend (Oracle Projects Control Account)
FCO,FCO,21/12/2016,8762579,-30706.79,NEXT GENERATION ENROLLMENT,US Healthcare Contract
FCO,FCO,16/12/2016,8081444,-31016.96,KIDMAH LLC,Multiple Accounts
FCO,FCO,20/12/2016,8746494,-34350.95,THAMES VALLEY POLICE AUTH INCOME,Programme Spend (Oracle Projects Control Account)
FCO,FCO,07/12/2016,8596583,-49014.7,BUR OTHER DEBTORS,Recharge Suspense Account (Oracle PA Control Account)
FCO,FCO,29/12/2016,8800868,-53435.53,ASSOCIATION OF COLLEGES,Programme Spend (Oracle Projects Control Account)
FCO,FCO,12/12/2016,8645480,-58173.73,DMS AFRICA,Property Maintenance Overseas Residential
FCO,FCO,07/12/2016,8599503,-59864.03,KOIZA INTERNATIONAL LTD,Multiple Accounts
FCO,FCO,12/12/2016,8646573,-67495.65,VODAFONE LTD CABLE AND WIRELESS UK,IT/IS Consultancy
FCO,FCO,01/12/2016,7915433,-67948.27,RAPHAEL A O NWOSU,Recharge Suspense Account (Oracle PA Control Account)
FCO,FCO,01/12/2016,8444430,-71116.96,RAPHAEL A O NWOSU,Recharge Suspense Account (Oracle PA Control Account)
FCO,FCO,05/12/2016,8580428,-73323,BAE SYSTEMS APPLIED INTELLIGENCE LIMITED,Specialist Contractors
FCO,FCO,09/12/2016,8624786,-182559.23,SPM OTHER DEBTORS,Proceeds from Assets held for sale
FCO,FCO,22/12/2016,8772591,-200219.78,RSM OTHER DEBTORS,Proceeds from Assets held for sale
FCO,FCO,22/12/2016,8772594,-283583.57,RSM OTHER DEBTORS,Proceeds from Assets held for sale
FCO,FCO,05/12/2016,8580034,-300000,POWER ELECTRICS GENERATORS LTD,Assets Under Construction (Oracle PA Control Account)
FCO,FCO,01/12/2016,8557441,-6688461.19,CAO OTHER DEBTORS,Proceeds from Assets held for sale
